Workbook

Sheet Introduction

Sheet Breed Table
A1: 1 | B1: 2 | C1: 3 | D1: 4 | E1: 5 | F1: 6 | G1: 7 | H1: 8 | I1: 9
A2: Final 2018 Across Breed EPDs
A4: Breed Code | B4: Breed | C4: Birth Wt ADJ Factor | D4: Weaning Wt Adj Factor | E4: Yearling Wt Adj Factor | F4: Maternal Milk Adj Factor | G4: Marbling Adj Factor | H4: REA Adj Factor | I4: Fat Thickness Adj Factor | J4: Carcass Wt Adj Factor
A5: 1 | B5: Angus | C5: 0 | D5: 0 | E5: 0 | F5: 0 | G5: 0 | H5: 0 | I5: 0 | J5: 0
A6: 2 | B6: Hereford | C6: 1.4 | D6: -16.5 | E6: -44.4 | F6: -12.5 | G6: -0.3 | H6: 0.02 | I6: -0.073 | J6: -41.1
A7: 3 | B7: Red Angus | C7: 2.6 | D7: -19.4 | E7: -31.4 | F7: 1.5 | G7: -0.03 | H7: 0.25 | I7: -0.04 | J7: -13.2
A8: 4 | B8: Shorthorn | C8: 4.5 | D8: -34.4 | E8: -46.6 | F8: -0.1 | G8: -0.07 | H8: 0.47 | I8: -0.032 | J8: 5.6
A9: 5 | B9: South Devon | C9: 2.6 | D9: -29.9 | E9: -55.4 | F9: 3.1 | G9: -0.53 | H9: 0.64 | I9: -0.213 | J9: -68.8
A10: 6 | B10: Beefmaster | C10: 4 | D10: 23.4 | E10: 1.1 | F10: 7.7 | G10: NA | H10: NA | I10: NA | J10: NA
A11: 7 | B11: Brahman | C11: 10.3 | D11: 53.3 | E11: 14.4 | F11: 16.7 | G11: -0.64 | H11: 0.03 | I11: -0.166 | J11: -35.9
A12: 8 | B12: Brangus | C12: 3.1 | D12: 14.9 | E12: 5.3 | F12: 12.9 | G12: NA | H12: NA | I12: NA | J12: NA
A13: 9 | B13: Santa Gertrudis | C13: 5.2 | D13: 40.4 | E13: 39.8 | F13: 16.8 | G13: -0.44 | H13: 0.12 | I13: -0.085 | J13: -12.3
A14: 10 | B14: Braunvieh | C14: 2.2 | D14: -21.1 | E14: -46.6 | F14: 4.1 | G14: -0.61 | H14: 1 | I14: -0.1 | J14: -53.4
A15: 11 | B15: Charolais | C15: 6.6 | D15: 32.7 | E15: 23.2 | F15: 8.1 | G15: -0.29 | H15: 0.79 | I15: -0.201 | J15: 5.1
A16: 12 | B16: Chiangus | C16: 2.8 | D16: -21.1 | E16: -36.2 | F16: 2.5 | G16: -0.47 | H16: 0.59 | I16: -0.142 | J16: -19.3
A17: 13 | B17: Gelbvieh | C17: 2.9 | D17: -15.5 | E17: -27.1 | F17: 8.2 | G17: -0.37 | H17: 0.66 | I17: -0.066 | J17: 1.5
A18: 14 | B18: Limousin | C18: 2.5 | D18: -16.9 | E18: -53.9 | F18: -2.4 | G18: -0.03 | H18: 0.59 | I18: -0.024 | J18: -5.1
A19: 15 | B19: Main-Anjou | C19: 2.4 | D19: -30.3 | E19: -55.2 | F19: -7 | G19: -0.43 | H19: 0.95 | I19: -0.179 | J19: -35.1
A20: 16 | B20: Salers | C20: 0.9 | D20: -11.2 | E20: -48 | F20: 5.6 | G20: 0.07 | H20: 1.08 | I20: -0.177 | J20: -47.6
A21: 17 | B21: Simmental | C21: 2.8 | D21: -11.6 | E21: -19.2 | F21: 1.8 | G21: -0.12 | H21: 0.45 | I21: -0.049 | J21: -7.5
A22: 18 | B22: Tarentaise | C22: 2.7 | D22: 20.2 | E22: -12.1 | F22: 15.7 | G22: NA | H22: NA | I22: NA | J22: NA

Sheet Setting EPD Parameters
A1: This sheet will allow you to compare EPD values according to a breed you are familiar with. For example, if you typically purchase Limousin Bulls but have decided to purchase Charolais bulls, you can set the parameters for EPDs using Limousin numbers. This spreadsheet will return EPD values for a Charolais bull that would have equivalent EPD values, reported on a Charolais basis (as you would see in the bull catalog).
A3: Compare Desired Breed EPD
A5: Breed A
B6: Breed code
A7: Adjust to: | B7: 1
A10: Breed B
B11: Breed code | F11: If you receive (--), it is because not all breeds have Across-Breed Adjustment factors for some EPDs.
A12: Adjust This Breed to Above: | B12: 17
D15: =VLOOKUP(B7,'Breed Table'!A$5:C$23,2) -> Angus | J15: =VLOOKUP(B12,'Breed Table'!A$5:B$23,2) -> Simmental
D16: Desired EPD for BW | J16: Comparable BW
D17: 0 | F17: 2 | G17: =VLOOKUP(B7,'Breed Table'!A5:J22,3) -> 0 | H17: =VLOOKUP(B12,'Breed Table'!A5:J22,3) -> 2.8 | J17: =IFERROR((D17+G17)-H17,"--") -> -2.8 | L17: =IFERROR((F17+G17)-H17,"--") -> -0.8
D20: Desired EPD WW | G20: Across-Breed Adjustment (BW) | H20: Across-Breed Adjustment (BW) | J20: Comparable WW
D21: 41 | F21: 50 | G21: =VLOOKUP(B7,'Breed Table'!A5:J25,4) -> 0 | H21: =VLOOKUP(B12,'Breed Table'!A5:D25,4) -> -11.6 | J21: =IFERROR((D21+G21)-H21,"--") -> 52.6 | L21: =IFERROR((F21+G21)-H21,"--") -> 61.6
D24: Desired EPD YW | G24: Across-Breed Adjustment (WW) | H24: Across-Breed Adjustment (WW) | J24: Comparable YW
D25: 0 | F25: 0 | G25: =VLOOKUP(B7,'Breed Table'!A5:E25,5) -> 0 | H25: =VLOOKUP(B12,'Breed Table'!A5:E25,5) -> -19.2 | J25: =IFERROR((D25+G25)-H25,"--") -> 19.2 | L25: =IFERROR((F25+G25)-H25,"--") -> 19.2
D28: Desired EPD Maternal Milk | G28: Across-Breed Adjustment (MM) | H28: Across-Breed Adjustment (MM) | J28: Comparable MM
G29: =VLOOKUP(B7,'Breed Table'!A5:F24,6) -> 0 | H29: =VLOOKUP(B12,'Breed Table'!A5:F24,6) -> 1.8
D30: 20 | F30: 25 | G30: =VLOOKUP(B7,'Breed Table'!A5:F24,6) -> 0 | H30: =VLOOKUP(B12,'Breed Table'!A5:F24,6) -> 1.8 | J30: =IFERROR((D30+G30)-H30,"--") -> 18.2 | L30: =IFERROR((F30+G30)-H30,"--") -> 23.2
D33: Desired EPD Marbling | G33: Across-Breed Adjustment (Marb) | H33: Across-Breed Adjustment (Marb) | J33: Comparable Marbling
D34: 0.2 | F34: 0.5 | G34: =VLOOKUP(B7,'Breed Table'!A5:J29,7) -> 0 | H34: =VLOOKUP(B12,'Breed Table'!A5:J24,7) -> -0.12 | J34: =IFERROR((D34+G34)-H34,"--") -> 0.32 | L34: =IFERROR((F34+G34)-H34,"--") -> 0.62
D37: Desired EPD REA | G37: Across-Breed Adjustment (REA) | H37: Across-Breed Adjustment (REA) | J37: Comparable REA
D38: 0.2 | F38: 0.5 | G38: =VLOOKUP(B7,'Breed Table'!A5:H24,8) -> 0 | H38: =VLOOKUP(B12,'Breed Table'!A5:H24,8) -> 0.45 | J38: =IFERROR((D38+G38)-H38,"--") -> -0.25 | L38: =IFERROR((F38+G38)-H38,"--") -> 0.05
D41: Desired EPD Fat Thickness | G41: Across-Breed Adjustment (BF) | H41: Across-Breed Adjustment (BF)
J42: Comparable Fat Thickness
D43: 0 | F43: 0.05 | G43: =VLOOKUP(B7,'Breed Table'!A5:I24,9) -> 0 | H43: =VLOOKUP(B12,'Breed Table'!A5:I24,9) -> -0.049 | J43: =IFERROR((D43+G43)-H43,"--") -> 0.049 | L43: =IFERROR((F43+G43)-H43,"--") -> 0.099
D46: Desired EPD Carcass Wt.
G47: Across-Breed Adjustment (CW) | H47: Across-Breed Adjustment (CW) | J47: Comparable CW
D48: 10 | F48: 50 | G48: =VLOOKUP(B7,'Breed Table'!A5:J24,10) -> 0 | H48: =VLOOKUP(B12,'Breed Table'!A5:J24,10) -> -7.5 | J48: =IFERROR((D48+G48)-H48,"--") -> 17.5 | L48: =IFERROR((F48+G48)-H48,"--") -> 57.5
D52: Parameters entered reflect the breed of bull you are familiar with. | J52: Comparable EPD's are the equivalent values reported for the breed you are looking to purchase (as printed in their catalog).

Sheet Compare Mulitple Sires
A1: This sheet will allow you to compare several different bulls of any breed. All EPD's are converted to an Angus basis. Choose the breed of the sire using the drop down box or by typing in the breed code (found on the Breed Table worksheet). The first section allows you to input the EPD's published in the catalog. The second section will display the adjusted EPD's on an ANGUS basis. Section III allows you to choose the breed that the EPD's will be converted to and reported on that basis.
A2: SECTION I: Enter Sire ID, Breed Code and Published EPD
A4: Notes | B4: Sire ID | C4: Breed Code | D4: Breed | E4: Catalog and pg | F4: Published EPD BW | G4: Across-Breed Adjustment (BW) | H4: Published EPD WW | I4: Published EPD YW | J4: Published EPD Maternal Milk | K4: Published EPD Marbling | L4: Published EPD REA | M4: Published EPD Fat Thickness | N4: Published EPD CW
B5: Comrade | C5: 1 | E5: Select Sires | F5: -3.5 | H5: 46 | I5: 90 | J5: 27 | K5: 0.57 | L5: 0.58 | M5: -0.004 | N5: 17
B6: Liberty | C6: 3 | E6: Select Sires | F6: -5.4 | H6: 65 | I6: 108 | J6: 24 | K6: 0.5 | L6: 0.33 | M6: -0.02 | N6: 27
B7: In Force | C7: 17 | E7: Select Sires | F7: -3.5 | H7: 49.8 | I7: 71.9 | J7: 33.2 | K7: 0.67 | L7: 0.48 | M7: -0.07 | N7: 3.3
B8: Sensation | C8: 2 | E8: Select Sires | F8: -1.1 | H8: 53 | I8: 80 | J8: 39 | K8: 0.16 | L8: 0.7 | M8: -0.025 | N8: 73
A25: SECTION II: Computer Generated Across Breed EPD Comparison of Sires: Angus Basis
B26: Sire ID | C26: Breed Code | D26: Breed | F26: Across-Breed Birth Wt | G26: Across-Breed Adjustment (BW) | H26: Across-Breed Weaning Wt | I26: Across-Breed Yearling Wt | J26: Across-Breed Maternal Milk | K26: *Across-Breed Marbling | L26: *Across-Breed REA | M26: *Across-Breed Fat Thickness | N26: *Across-Breed Carcass Wt
A27: =IF(A5=0, "", A5) ->  | B27: =IF(B5=0, "", B5) -> Comrade | C27: =IF(C5=0, "", C5) -> 1 | D27: =IF(C5=0,"",VLOOKUP(C27,'Breed Table'!$A$5:$B$22,2)) -> Angus | E27: =IF(E5=0, "", E5) -> Select Sires | F27: =IF(F5="","--",IFERROR(IF(C5=0,"",'Multiple Sire Hidden'!$A4+F5),"--")) -> -3.5 | H27: =IF(H5="","--",IFERROR(IF(C5=0,"",H5+'Multiple Sire Hidden'!$B4),"--")) -> 46 | I27: =IF(I5="","--",IFERROR(IF(C5=0,"",I5+'Multiple Sire Hidden'!$C4),"--")) -> 90 | J27: =IF(J5="","--",IFERROR(IF(C5=0,"",J5+'Multiple Sire Hidden'!$D4),"--")) -> 27 | K27: =IF(K5="","--",IFERROR(IF(C5=0,"",K5+'Multiple Sire Hidden'!$E4),"--")) -> 0.57 | L27: =IF(L5="","--",IFERROR(IF(C5=0,"",L5+'Multiple Sire Hidden'!$F4),"--")) -> 0.58 | M27: =IF(M5="", "--", IFERROR(IF(C5=0,"",M5+'Multiple Sire Hidden'!$G4),"--")) -> -0.004 | N27: =IF(N5="","--",IFERROR(IF(C5=0,"",N5+'Multiple Sire Hidden'!$H4),"--")) -> 17
A28: =IF(A6=0, "", A6) ->  | B28: Liberty | C28: 3 | D28: =IF(C6=0,"",VLOOKUP(C28,'Breed Table'!$A$5:$B$22,2)) -> Red Angus | E28: =IF(E6=0, "", E6) -> Select Sires | F28: =IF(F6="","--",IFERROR(IF(C6=0,"",'Multiple Sire Hidden'!$A5+F6),"--")) -> -2.8 | H28: =IF(H6="","--",IFERROR(IF(C6=0,"",H6+'Multiple Sire Hidden'!$B5),"--")) -> 45.6 | I28: =IF(I6="","--",IFERROR(IF(C6=0,"",I6+'Multiple Sire Hidden'!$C5),"--")) -> 76.6 | J28: =IF(J6="","--",IFERROR(IF(C6=0,"",J6+'Multiple Sire Hidden'!$D5),"--")) -> 25.5 | K28: =IF(K6="","--",IFERROR(IF(C6=0,"",K6+'Multiple Sire Hidden'!$E5),"--")) -> 0.47 | L28: =IF(L6="","--",IFERROR(IF(C6=0,"",L6+'Multiple Sire Hidden'!$F5),"--")) -> 0.58 | M28: =IF(M6="", "--", IFERROR(IF(C6=0,"",M6+'Multiple Sire Hidden'!$G5),"--")) -> -0.06 | N28: =IF(N6="","--",IFERROR(IF(C6=0,"",N6+'Multiple Sire Hidden'!$H5),"--")) -> 13.8
B29: In Force | C29: 17 | D29: =IF(C7=0,"",VLOOKUP(C29,'Breed Table'!$A$5:$B$22,2)) -> Simmental | E29: Select Sires | F29: =IF(F7="","--",IFERROR(IF(C7=0,"",'Multiple Sire Hidden'!$A6+F7),"--")) -> -0.7 | H29: =IF(H7="","--",IFERROR(IF(C7=0,"",H7+'Multiple Sire Hidden'!$B6),"--")) -> 38.2 | I29: =IF(I7="","--",IFERROR(IF(C7=0,"",I7+'Multiple Sire Hidden'!$C6),"--")) -> 52.7 | J29: =IF(J7="","--",IFERROR(IF(C7=0,"",J7+'Multiple Sire Hidden'!$D6),"--")) -> 35 | K29: =IF(K7="","--",IFERROR(IF(C7=0,"",K7+'Multiple Sire Hidden'!$E6),"--")) -> 0.55 | L29: =IF(L7="","--",IFERROR(IF(C7=0,"",L7+'Multiple Sire Hidden'!$F6),"--")) -> 0.93 | M29: =IF(M7="", "--", IFERROR(IF(C7=0,"",M7+'Multiple Sire Hidden'!$G6),"--")) -> -0.119 | N29: =IF(N7="","--",IFERROR(IF(C7=0,"",N7+'Multiple Sire Hidden'!$H6),"--")) -> -4.2
B30: Sensation | C30: 2 | D30: =IF(C8=0,"",VLOOKUP(C30,'Breed Table'!$A$5:$B$22,2)) -> Hereford | E30: Select Sires | F30: =IF(F8="","--",IFERROR(IF(C8=0,"",'Multiple Sire Hidden'!$A7+F8),"--")) -> 0.3 | H30: =IF(H8="","--",IFERROR(IF(C8=0,"",H8+'Multiple Sire Hidden'!$B7),"--")) -> 36.5 | I30: =IF(I8="","--",IFERROR(IF(C8=0,"",I8+'Multiple Sire Hidden'!$C7),"--")) -> 35.6 | J30: =IF(J8="","--",IFERROR(IF(C8=0,"",J8+'Multiple Sire Hidden'!$D7),"--")) -> 26.5 | K30: =IF(K8="","--",IFERROR(IF(C8=0,"",K8+'Multiple Sire Hidden'!$E7),"--")) -> -0.14 | L30: =IF(L8="","--",IFERROR(IF(C8=0,"",L8+'Multiple Sire Hidden'!$F7),"--")) -> 0.72 | M30: =IF(M8="", "--", IFERROR(IF(C8=0,"",M8+'Multiple Sire Hidden'!$G7),"--")) -> -0.098 | N30: =IF(N8="","--",IFERROR(IF(C8=0,"",N8+'Multiple Sire Hidden'!$H7),"--")) -> 31.9
D31: =IF(C9=0,"",VLOOKUP(C31,'Breed Table'!$A$5:$B$22,2)) ->  | F31: =IF(F9="","--",IFERROR(IF(C9=0,"",'Multiple Sire Hidden'!$A8+F9),"--")) -> -- | H31: =IF(H9="","--",IFERROR(IF(C9=0,"",H9+'Multiple Sire Hidden'!$B8),"--")) -> -- | I31: =IF(I9="","--",IFERROR(IF(C9=0,"",I9+'Multiple Sire Hidden'!$C8),"--")) -> -- | J31: =IF(J9="","--",IFERROR(IF(C9=0,"",J9+'Multiple Sire Hidden'!$D8),"--")) -> -- | K31: =IF(K9="","--",IFERROR(IF(C9=0,"",K9+'Multiple Sire Hidden'!$E8),"--")) -> -- | L31: =IF(L9="","--",IFERROR(IF(C9=0,"",L9+'Multiple Sire Hidden'!$F8),"--")) -> -- | M31: =IF(M9="", "--", IFERROR(IF(C9=0,"",M9+'Multiple Sire Hidden'!$G8),"--")) -> -- | N31: =IF(N9="","--",IFERROR(IF(C9=0,"",N9+'Multiple Sire Hidden'!$H8),"--")) -> --
D32: =IF(C10=0,"",VLOOKUP(C32,'Breed Table'!$A$5:$B$22,2)) ->  | F32: =IF(F10="","--",IFERROR(IF(C10=0,"",'Multiple Sire Hidden'!$A9+F10),"--")) -> -- | H32: =IF(H10="","--",IFERROR(IF(C10=0,"",H10+'Multiple Sire Hidden'!$B9),"--")) -> -- | I32: =IF(I10="","--",IFERROR(IF(C10=0,"",I10+'Multiple Sire Hidden'!$C9),"--")) -> -- | J32: =IF(J10="","--",IFERROR(IF(C10=0,"",J10+'Multiple Sire Hidden'!$D9),"--")) -> -- | K32: =IF(K10="","--",IFERROR(IF(C10=0,"",K10+'Multiple Sire Hidden'!$E9),"--")) -> -- | L32: =IF(L10="","--",IFERROR(IF(C10=0,"",L10+'Multiple Sire Hidden'!$F9),"--")) -> -- | M32: =IF(M10="", "--", IFERROR(IF(C10=0,"",M10+'Multiple Sire Hidden'!$G9),"--")) -> -- | N32: =IF(N10="","--",IFERROR(IF(C10=0,"",N10+'Multiple Sire Hidden'!$H9),"--")) -> --
D33: =IF(C11=0,"",VLOOKUP(C33,'Breed Table'!$A$5:$B$22,2)) ->  | F33: =IF(F11="","--",IFERROR(IF(C11=0,"",'Multiple Sire Hidden'!$A10+F11),"--")) -> -- | H33: =IF(H11="","--",IFERROR(IF(C11=0,"",H11+'Multiple Sire Hidden'!$B10),"--")) -> -- | I33: =IF(I11="","--",IFERROR(IF(C11=0,"",I11+'Multiple Sire Hidden'!$C10),"--")) -> -- | J33: =IF(J11="","--",IFERROR(IF(C11=0,"",J11+'Multiple Sire Hidden'!$D10),"--")) -> -- | K33: =IF(K11="","--",IFERROR(IF(C11=0,"",K11+'Multiple Sire Hidden'!$E10),"--")) -> -- | L33: =IF(L11="","--",IFERROR(IF(C11=0,"",L11+'Multiple Sire Hidden'!$F10),"--")) -> -- | M33: =IF(M11="", "--", IFERROR(IF(C11=0,"",M11+'Multiple Sire Hidden'!$G10),"--")) -> -- | N33: =IF(N11="","--",IFERROR(IF(C11=0,"",N11+'Multiple Sire Hidden'!$H10),"--")) -> --
D34: =IF(C12=0,"",VLOOKUP(C34,'Breed Table'!$A$5:$B$22,2)) ->  | F34: =IF(F12="","--",IFERROR(IF(C12=0,"",'Multiple Sire Hidden'!$A11+F12),"--")) -> -- | H34: =IF(H12="","--",IFERROR(IF(C12=0,"",H12+'Multiple Sire Hidden'!$B11),"--")) -> -- | I34: =IF(I12="","--",IFERROR(IF(C12=0,"",I12+'Multiple Sire Hidden'!$C11),"--")) -> -- | J34: =IF(J12="","--",IFERROR(IF(C12=0,"",J12+'Multiple Sire Hidden'!$D11),"--")) -> -- | K34: =IF(K12="","--",IFERROR(IF(C12=0,"",K12+'Multiple Sire Hidden'!$E11),"--")) -> -- | L34: =IF(L12="","--",IFERROR(IF(C12=0,"",L12+'Multiple Sire Hidden'!$F11),"--")) -> -- | M34: =IF(M12="", "--", IFERROR(IF(C12=0,"",M12+'Multiple Sire Hidden'!$G11),"--")) -> -- | N34: =IF(N12="","--",IFERROR(IF(C12=0,"",N12+'Multiple Sire Hidden'!$H11),"--")) -> --
D35: =IF(C13=0,"",VLOOKUP(C35,'Breed Table'!$A$5:$B$22,2)) ->  | F35: =IF(F13="","--",IFERROR(IF(C13=0,"",'Multiple Sire Hidden'!$A12+F13),"--")) -> -- | H35: =IF(H13="","--",IFERROR(IF(C13=0,"",H13+'Multiple Sire Hidden'!$B12),"--")) -> -- | I35: =IF(I13="","--",IFERROR(IF(C13=0,"",I13+'Multiple Sire Hidden'!$C12),"--")) -> -- | J35: =IF(J13="","--",IFERROR(IF(C13=0,"",J13+'Multiple Sire Hidden'!$D12),"--")) -> -- | K35: =IF(K13="","--",IFERROR(IF(C13=0,"",K13+'Multiple Sire Hidden'!$E12),"--")) -> -- | L35: =IF(L13="","--",IFERROR(IF(C13=0,"",L13+'Multiple Sire Hidden'!$F12),"--")) -> -- | M35: =IF(M13="", "--", IFERROR(IF(C13=0,"",M13+'Multiple Sire Hidden'!$G12),"--")) -> -- | N35: =IF(N13="","--",IFERROR(IF(C13=0,"",N13+'Multiple Sire Hidden'!$H12),"--")) -> --
D36: =IF(C14=0,"",VLOOKUP(C36,'Breed Table'!$A$5:$B$22,2)) ->  | F36: =IF(F14="","--",IFERROR(IF(C14=0,"",'Multiple Sire Hidden'!$A13+F14),"--")) -> -- | H36: =IF(H14="","--",IFERROR(IF(C14=0,"",H14+'Multiple Sire Hidden'!$B13),"--")) -> -- | I36: =IF(I14="","--",IFERROR(IF(C14=0,"",I14+'Multiple Sire Hidden'!$C13),"--")) -> -- | J36: =IF(J14="","--",IFERROR(IF(C14=0,"",J14+'Multiple Sire Hidden'!$D13),"--")) -> -- | K36: =IF(K14="","--",IFERROR(IF(C14=0,"",K14+'Multiple Sire Hidden'!$E13),"--")) -> -- | L36: =IF(L14="","--",IFERROR(IF(C14=0,"",L14+'Multiple Sire Hidden'!$F13),"--")) -> -- | M36: =IF(M14="", "--", IFERROR(IF(C14=0,"",M14+'Multiple Sire Hidden'!$G13),"--")) -> -- | N36: =IF(N14="","--",IFERROR(IF(C14=0,"",N14+'Multiple Sire Hidden'!$H13),"--")) -> --
D37: =IF(C15=0,"",VLOOKUP(C37,'Breed Table'!$A$5:$B$22,2)) ->  | F37: =IF(F15="","--",IFERROR(IF(C15=0,"",'Multiple Sire Hidden'!$A14+F15),"--")) -> -- | H37: =IF(H15="","--",IFERROR(IF(C15=0,"",H15+'Multiple Sire Hidden'!$B14),"--")) -> -- | I37: =IF(I15="","--",IFERROR(IF(C15=0,"",I15+'Multiple Sire Hidden'!$C14),"--")) -> -- | J37: =IF(J15="","--",IFERROR(IF(C15=0,"",J15+'Multiple Sire Hidden'!$D14),"--")) -> -- | K37: =IF(K15="","--",IFERROR(IF(C15=0,"",K15+'Multiple Sire Hidden'!$E14),"--")) -> -- | L37: =IF(L15="","--",IFERROR(IF(C15=0,"",L15+'Multiple Sire Hidden'!$F14),"--")) -> -- | M37: =IF(M15="", "--", IFERROR(IF(C15=0,"",M15+'Multiple Sire Hidden'!$G14),"--")) -> -- | N37: =IF(N15="","--",IFERROR(IF(C15=0,"",N15+'Multiple Sire Hidden'!$H14),"--")) -> --
D38: =IF(C16=0,"",VLOOKUP(C38,'Breed Table'!$A$5:$B$22,2)) ->  | F38: =IF(F16="","--",IFERROR(IF(C16=0,"",'Multiple Sire Hidden'!$A15+F16),"--")) -> -- | H38: =IF(H16="","--",IFERROR(IF(C16=0,"",H16+'Multiple Sire Hidden'!$B15),"--")) -> -- | I38: =IF(I16="","--",IFERROR(IF(C16=0,"",I16+'Multiple Sire Hidden'!$C15),"--")) -> -- | J38: =IF(J16="","--",IFERROR(IF(C16=0,"",J16+'Multiple Sire Hidden'!$D15),"--")) -> -- | K38: =IF(K16="","--",IFERROR(IF(C16=0,"",K16+'Multiple Sire Hidden'!$E15),"--")) -> -- | L38: =IF(L16="","--",IFERROR(IF(C16=0,"",L16+'Multiple Sire Hidden'!$F15),"--")) -> -- | M38: =IF(M16="", "--", IFERROR(IF(C16=0,"",M16+'Multiple Sire Hidden'!$G15),"--")) -> -- | N38: =IF(N16="","--",IFERROR(IF(C16=0,"",N16+'Multiple Sire Hidden'!$H15),"--")) -> --
D39: =IF(C17=0,"",VLOOKUP(C39,'Breed Table'!$A$5:$B$22,2)) ->  | F39: =IF(F17="","--",IFERROR(IF(C17=0,"",'Multiple Sire Hidden'!$A16+F17),"--")) -> -- | H39: =IF(H17="","--",IFERROR(IF(C17=0,"",H17+'Multiple Sire Hidden'!$B16),"--")) -> -- | I39: =IF(I17="","--",IFERROR(IF(C17=0,"",I17+'Multiple Sire Hidden'!$C16),"--")) -> -- | J39: =IF(J17="","--",IFERROR(IF(C17=0,"",J17+'Multiple Sire Hidden'!$D16),"--")) -> -- | K39: =IF(K17="","--",IFERROR(IF(C17=0,"",K17+'Multiple Sire Hidden'!$E16),"--")) -> -- | L39: =IF(L17="","--",IFERROR(IF(C17=0,"",L17+'Multiple Sire Hidden'!$F16),"--")) -> -- | M39: =IF(M17="", "--", IFERROR(IF(C17=0,"",M17+'Multiple Sire Hidden'!$G16),"--")) -> -- | N39: =IF(N17="","--",IFERROR(IF(C17=0,"",N17+'Multiple Sire Hidden'!$H16),"--")) -> --
D40: =IF(C18=0,"",VLOOKUP(C40,'Breed Table'!$A$5:$B$22,2)) ->  | F40: =IF(F18="","--",IFERROR(IF(C18=0,"",'Multiple Sire Hidden'!$A17+F18),"--")) -> -- | H40: =IF(H18="","--",IFERROR(IF(C18=0,"",H18+'Multiple Sire Hidden'!$B17),"--")) -> -- | I40: =IF(I18="","--",IFERROR(IF(C18=0,"",I18+'Multiple Sire Hidden'!$C17),"--")) -> -- | J40: =IF(J18="","--",IFERROR(IF(C18=0,"",J18+'Multiple Sire Hidden'!$D17),"--")) -> -- | K40: =IF(K18="","--",IFERROR(IF(C18=0,"",K18+'Multiple Sire Hidden'!$E17),"--")) -> -- | L40: =IF(L18="","--",IFERROR(IF(C18=0,"",L18+'Multiple Sire Hidden'!$F17),"--")) -> -- | M40: =IF(M18="", "--", IFERROR(IF(C18=0,"",M18+'Multiple Sire Hidden'!$G17),"--")) -> -- | N40: =IF(N18="","--",IFERROR(IF(C18=0,"",N18+'Multiple Sire Hidden'!$H17),"--")) -> --
D41: =IF(C19=0,"",VLOOKUP(C41,'Breed Table'!$A$5:$B$22,2)) ->  | F41: =IF(F19="","--",IFERROR(IF(C19=0,"",'Multiple Sire Hidden'!$A18+F19),"--")) -> -- | H41: =IF(H19="","--",IFERROR(IF(C19=0,"",H19+'Multiple Sire Hidden'!$B18),"--")) -> -- | I41: =IF(I19="","--",IFERROR(IF(C19=0,"",I19+'Multiple Sire Hidden'!$C18),"--")) -> -- | J41: =IF(J19="","--",IFERROR(IF(C19=0,"",J19+'Multiple Sire Hidden'!$D18),"--")) -> -- | K41: =IF(K19="","--",IFERROR(IF(C19=0,"",K19+'Multiple Sire Hidden'!$E18),"--")) -> -- | L41: =IF(L19="","--",IFERROR(IF(C19=0,"",L19+'Multiple Sire Hidden'!$F18),"--")) -> -- | M41: =IF(M19="", "--", IFERROR(IF(C19=0,"",M19+'Multiple Sire Hidden'!$G18),"--")) -> -- | N41: =IF(N19="","--",IFERROR(IF(C19=0,"",N19+'Multiple Sire Hidden'!$H18),"--")) -> --
D42: =IF(C20=0,"",VLOOKUP(C42,'Breed Table'!$A$5:$B$22,2)) ->  | F42: =IF(F20="","--",IFERROR(IF(C20=0,"",'Multiple Sire Hidden'!$A19+F20),"--")) -> -- | H42: =IF(H20="","--",IFERROR(IF(C20=0,"",H20+'Multiple Sire Hidden'!$B19),"--")) -> -- | I42: =IF(I20="","--",IFERROR(IF(C20=0,"",I20+'Multiple Sire Hidden'!$C19),"--")) -> -- | J42: =IF(J20="","--",IFERROR(IF(C20=0,"",J20+'Multiple Sire Hidden'!$D19),"--")) -> -- | K42: =IF(K20="","--",IFERROR(IF(C20=0,"",K20+'Multiple Sire Hidden'!$E19),"--")) -> -- | L42: =IF(L20="","--",IFERROR(IF(C20=0,"",L20+'Multiple Sire Hidden'!$F19),"--")) -> -- | M42: =IF(M20="", "--", IFERROR(IF(C20=0,"",M20+'Multiple Sire Hidden'!$G19),"--")) -> -- | N42: =IF(N20="","--",IFERROR(IF(C20=0,"",N20+'Multiple Sire Hidden'!$H19),"--")) -> --
D43: =IF(C21=0,"",VLOOKUP(C43,'Breed Table'!$A$5:$B$22,2)) ->  | F43: =IF(F21="","--",IFERROR(IF(C21=0,"",'Multiple Sire Hidden'!$A20+F21),"--")) -> -- | H43: =IF(H21="","--",IFERROR(IF(C21=0,"",H21+'Multiple Sire Hidden'!$B20),"--")) -> -- | I43: =IF(I21="","--",IFERROR(IF(C21=0,"",I21+'Multiple Sire Hidden'!$C20),"--")) -> -- | J43: =IF(J21="","--",IFERROR(IF(C21=0,"",J21+'Multiple Sire Hidden'!$D20),"--")) -> -- | K43: =IF(K21="","--",IFERROR(IF(C21=0,"",K21+'Multiple Sire Hidden'!$E20),"--")) -> -- | L43: =IF(L21="","--",IFERROR(IF(C21=0,"",L21+'Multiple Sire Hidden'!$F20),"--")) -> -- | M43: =IF(M21="", "--", IFERROR(IF(C21=0,"",M21+'Multiple Sire Hidden'!$G20),"--")) -> -- | N43: =IF(N21="","--",IFERROR(IF(C21=0,"",N21+'Multiple Sire Hidden'!$H20),"--")) -> --
D44: =IF(C22=0,"",VLOOKUP(C44,'Breed Table'!$A$5:$B$22,2)) ->  | F44: =IF(F22="","--",IFERROR(IF(C22=0,"",'Multiple Sire Hidden'!$A21+F22),"--")) -> -- | H44: =IF(H22="","--",IFERROR(IF(C22=0,"",H22+'Multiple Sire Hidden'!$B21),"--")) -> -- | I44: =IF(I22="","--",IFERROR(IF(C22=0,"",I22+'Multiple Sire Hidden'!$C21),"--")) -> -- | J44: =IF(J22="","--",IFERROR(IF(C22=0,"",J22+'Multiple Sire Hidden'!$D21),"--")) -> -- | K44: =IF(K22="","--",IFERROR(IF(C22=0,"",K22+'Multiple Sire Hidden'!$E21),"--")) -> -- | L44: =IF(L22="","--",IFERROR(IF(C22=0,"",L22+'Multiple Sire Hidden'!$F21),"--")) -> -- | M44: =IF(M22="", "--", IFERROR(IF(C22=0,"",M22+'Multiple Sire Hidden'!$G21),"--")) -> -- | N44: =IF(N22="","--",IFERROR(IF(C22=0,"",N22+'Multiple Sire Hidden'!$H21),"--")) -> --
D45: =IF(C23=0,"",VLOOKUP(C45,'Breed Table'!$A$5:$B$22,2)) ->  | F45: =IF(F23="","--",IFERROR(IF(C23=0,"",'Multiple Sire Hidden'!$A22+F23),"--")) -> -- | H45: =IF(H23="","--",IFERROR(IF(C23=0,"",H23+'Multiple Sire Hidden'!$B22),"--")) -> -- | I45: =IF(I23="","--",IFERROR(IF(C23=0,"",I23+'Multiple Sire Hidden'!$C22),"--")) -> -- | J45: =IF(J23="","--",IFERROR(IF(C23=0,"",J23+'Multiple Sire Hidden'!$D22),"--")) -> -- | K45: =IF(K23="","--",IFERROR(IF(C23=0,"",K23+'Multiple Sire Hidden'!$E22),"--")) -> -- | L45: =IF(L23="","--",IFERROR(IF(C23=0,"",L23+'Multiple Sire Hidden'!$F22),"--")) -> -- | M45: =IF(M23="", "--", IFERROR(IF(C23=0,"",M23+'Multiple Sire Hidden'!$G22),"--")) -> -- | N45: =IF(N23="","--",IFERROR(IF(C23=0,"",N23+'Multiple Sire Hidden'!$H22),"--")) -> --
D46: =IF(C24=0,"",VLOOKUP(C46,'Breed Table'!$A$5:$B$22,2)) ->  | F46: =IF(F24="","--",IFERROR(IF(C24=0,"",'Multiple Sire Hidden'!$A23+F24),"--")) -> -- | H46: =IF(H24="","--",IFERROR(IF(C24=0,"",H24+'Multiple Sire Hidden'!$B23),"--")) -> -- | I46: =IF(I24="","--",IFERROR(IF(C24=0,"",I24+'Multiple Sire Hidden'!$C23),"--")) -> -- | J46: =IF(J24="","--",IFERROR(IF(C24=0,"",J24+'Multiple Sire Hidden'!$D23),"--")) -> -- | K46: =IF(K24="","--",IFERROR(IF(C24=0,"",K24+'Multiple Sire Hidden'!$E23),"--")) -> -- | L46: =IF(L24="","--",IFERROR(IF(C24=0,"",L24+'Multiple Sire Hidden'!$F23),"--")) -> -- | M46: =IF(M24="", "--", IFERROR(IF(C24=0,"",M24+'Multiple Sire Hidden'!$G23),"--")) -> -- | N46: =IF(N24="","--",IFERROR(IF(C24=0,"",N24+'Multiple Sire Hidden'!$H23),"--")) -> --
A52: SECTION III: Generated Across Breed EPD Adjusted to this Breed Basis: | G52: 2
B53: Sire ID | C53: Breed Code | D53: Breed | F53: Across-Breed Birth Wt | G53: Across-Breed Adjustment (BW) | H53: Across-Breed Weaning Wt | I53: Across-Breed Yearling Wt | J53: Across-Breed Maternal Milk | K53: *Across-Breed Marbling | L53: *Across-Breed REA | M53: *Across-Breed Fat Thickness | N53: *Across-Breed Carcass Wt
A54: =IF(A27=0,"",A27) ->  | B54: =IF(B27=0,"",B27) -> Comrade | C54: =IF(C27=0,"",C27) -> 1 | D54: =IF(D27=0,"",D27) -> Angus | E54: Select Sires | F54: =IF(F5="","--",IFERROR(IF(C5=0,"",(F5+'Multiple Sire Hidden'!A4)-'Multiple Sire Hidden'!J4),"--")) -> -4.9 | G54: =(VLOOKUP($G$52,'Breed Table'!$A$5:$I$23,3)) -> 1.4 | H54: =IF(H5="","--",IFERROR(IF(C5=0,"",(H5+'Multiple Sire Hidden'!B4)-'Multiple Sire Hidden'!K4),"--")) -> 62.5 | I54: =IF(I5="","--",IFERROR(IF(C5=0,"",(I5+'Multiple Sire Hidden'!C4)-'Multiple Sire Hidden'!L4),"--")) -> 134.4 | J54: =IF(J5="","--",IFERROR(IF(C5=0,"",(J5+'Multiple Sire Hidden'!D4)-'Multiple Sire Hidden'!M4),"--")) -> 39.5 | K54: =IF(K5="","--",IFERROR(IF(C5=0,"",(K5+'Multiple Sire Hidden'!E4)-'Multiple Sire Hidden'!N4),"--")) -> 0.87 | L54: =IF(L5="","--",IFERROR(IF(C5=0,"",(L5+'Multiple Sire Hidden'!F4)-'Multiple Sire Hidden'!O4),"--")) -> 0.56 | M54: =IF(M5="","--",IFERROR(IF(C5=0,"",(M5+'Multiple Sire Hidden'!G4)-'Multiple Sire Hidden'!P4),"--")) -> 0.069 | N54: =IF(N5="","--",IFERROR(IF(C5=0,"",(N5+'Multiple Sire Hidden'!H4)-'Multiple Sire Hidden'!Q4),"--")) -> 58.1
A55: =IF(A28=0,"",A28) ->  | B55: Liberty | C55: 3 | D55: Red Angus | E55: Select Sires | F55: =IF(F6="","--",IFERROR(IF(C6=0,"",(F6+'Multiple Sire Hidden'!A5)-'Multiple Sire Hidden'!J5),"--")) -> -4.2 | H55: =IF(H6="","--",IFERROR(IF(C6=0,"",(H6+'Multiple Sire Hidden'!B5)-'Multiple Sire Hidden'!K5),"--")) -> 62.1 | I55: =IF(I6="","--",IFERROR(IF(C6=0,"",(I6+'Multiple Sire Hidden'!C5)-'Multiple Sire Hidden'!L5),"--")) -> 121 | J55: =IF(J6="","--",IFERROR(IF(C6=0,"",(J6+'Multiple Sire Hidden'!D5)-'Multiple Sire Hidden'!M5),"--")) -> 38 | K55: =IF(K6="","--",IFERROR(IF(C6=0,"",(K6+'Multiple Sire Hidden'!E5)-'Multiple Sire Hidden'!N5),"--")) -> 0.77 | L55: =IF(L6="","--",IFERROR(IF(C6=0,"",(L6+'Multiple Sire Hidden'!F5)-'Multiple Sire Hidden'!O5),"--")) -> 0.56 | M55: =IF(M6="","--",IFERROR(IF(C6=0,"",(M6+'Multiple Sire Hidden'!G5)-'Multiple Sire Hidden'!P5),"--")) -> 0.013 | N55: =IF(N6="","--",IFERROR(IF(C6=0,"",(N6+'Multiple Sire Hidden'!H5)-'Multiple Sire Hidden'!Q5),"--")) -> 54.9
B56: In Force | C56: 17 | D56: Simmental | E56: Select Sires | F56: =IF(F7="","--",IFERROR(IF(C7=0,"",(F7+'Multiple Sire Hidden'!A6)-'Multiple Sire Hidden'!J6),"--")) -> -2.1 | G56: =(VLOOKUP($G$52,'Breed Table'!$A$5:$I$23,3)) -> 1.4 | H56: =IF(H7="","--",IFERROR(IF(C7=0,"",(H7+'Multiple Sire Hidden'!B6)-'Multiple Sire Hidden'!K6),"--")) -> 54.7 | I56: =IF(I7="","--",IFERROR(IF(C7=0,"",(I7+'Multiple Sire Hidden'!C6)-'Multiple Sire Hidden'!L6),"--")) -> 97.1 | J56: =IF(J7="","--",IFERROR(IF(C7=0,"",(J7+'Multiple Sire Hidden'!D6)-'Multiple Sire Hidden'!M6),"--")) -> 47.5 | K56: =IF(K7="","--",IFERROR(IF(C7=0,"",(K7+'Multiple Sire Hidden'!E6)-'Multiple Sire Hidden'!N6),"--")) -> 0.85 | L56: =IF(L7="","--",IFERROR(IF(C7=0,"",(L7+'Multiple Sire Hidden'!F6)-'Multiple Sire Hidden'!O6),"--")) -> 0.91 | M56: =IF(M7="","--",IFERROR(IF(C7=0,"",(M7+'Multiple Sire Hidden'!G6)-'Multiple Sire Hidden'!P6),"--")) -> -0.046 | N56: =IF(N7="","--",IFERROR(IF(C7=0,"",(N7+'Multiple Sire Hidden'!H6)-'Multiple Sire Hidden'!Q6),"--")) -> 36.9
B57: Sensation | C57: 2 | D57: Hereford | E57: Select Sires | F57: =IF(F8="","--",IFERROR(IF(C8=0,"",(F8+'Multiple Sire Hidden'!A7)-'Multiple Sire Hidden'!J7),"--")) -> -1.1 | G57: =(VLOOKUP($G$52,'Breed Table'!$A$5:$I$23,3)) -> 1.4 | H57: =IF(H8="","--",IFERROR(IF(C8=0,"",(H8+'Multiple Sire Hidden'!B7)-'Multiple Sire Hidden'!K7),"--")) -> 53 | I57: =IF(I8="","--",IFERROR(IF(C8=0,"",(I8+'Multiple Sire Hidden'!C7)-'Multiple Sire Hidden'!L7),"--")) -> 80 | J57: =IF(J8="","--",IFERROR(IF(C8=0,"",(J8+'Multiple Sire Hidden'!D7)-'Multiple Sire Hidden'!M7),"--")) -> 39 | K57: =IF(K8="","--",IFERROR(IF(C8=0,"",(K8+'Multiple Sire Hidden'!E7)-'Multiple Sire Hidden'!N7),"--")) -> 0.16 | L57: =IF(L8="","--",IFERROR(IF(C8=0,"",(L8+'Multiple Sire Hidden'!F7)-'Multiple Sire Hidden'!O7),"--")) -> 0.7 | M57: =IF(M8="","--",IFERROR(IF(C8=0,"",(M8+'Multiple Sire Hidden'!G7)-'Multiple Sire Hidden'!P7),"--")) -> -0.025 | N57: =IF(N8="","--",IFERROR(IF(C8=0,"",(N8+'Multiple Sire Hidden'!H7)-'Multiple Sire Hidden'!Q7),"--")) -> 73
F58: =IF(F9="","--",IFERROR(IF(C9=0,"",(F9+'Multiple Sire Hidden'!A8)-'Multiple Sire Hidden'!J8),"--")) -> -- | G58: =(VLOOKUP($G$52,'Breed Table'!$A$5:$I$23,3)) -> 1.4 | H58: =IF(H9="","--",IFERROR(IF(C9=0,"",(H9+'Multiple Sire Hidden'!B8)-'Multiple Sire Hidden'!K8),"--")) -> -- | I58: =IF(I9="","--",IFERROR(IF(C9=0,"",(I9+'Multiple Sire Hidden'!C8)-'Multiple Sire Hidden'!L8),"--")) -> -- | J58: =IF(J9="","--",IFERROR(IF(C9=0,"",(J9+'Multiple Sire Hidden'!D8)-'Multiple Sire Hidden'!M8),"--")) -> -- | K58: =IF(K9="","--",IFERROR(IF(C9=0,"",(K9+'Multiple Sire Hidden'!E8)-'Multiple Sire Hidden'!N8),"--")) -> -- | L58: =IF(L9="","--",IFERROR(IF(C9=0,"",(L9+'Multiple Sire Hidden'!F8)-'Multiple Sire Hidden'!O8),"--")) -> -- | M58: =IF(M9="","--",IFERROR(IF(C9=0,"",(M9+'Multiple Sire Hidden'!G8)-'Multiple Sire Hidden'!P8),"--")) -> -- | N58: =IF(N9="","--",IFERROR(IF(C9=0,"",(N9+'Multiple Sire Hidden'!H8)-'Multiple Sire Hidden'!Q8),"--")) -> --
F59: =IF(F10="","--",IFERROR(IF(C10=0,"",(F10+'Multiple Sire Hidden'!A9)-'Multiple Sire Hidden'!J9),"--")) -> -- | G59: =(VLOOKUP($G$52,'Breed Table'!$A$5:$I$23,3)) -> 1.4 | H59: =IF(H10="","--",IFERROR(IF(C10=0,"",(H10+'Multiple Sire Hidden'!B9)-'Multiple Sire Hidden'!K9),"--")) -> -- | I59: =IF(I10="","--",IFERROR(IF(C10=0,"",(I10+'Multiple Sire Hidden'!C9)-'Multiple Sire Hidden'!L9),"--")) -> -- | J59: =IF(J10="","--",IFERROR(IF(C10=0,"",(J10+'Multiple Sire Hidden'!D9)-'Multiple Sire Hidden'!M9),"--")) -> -- | K59: =IF(K10="","--",IFERROR(IF(C10=0,"",(K10+'Multiple Sire Hidden'!E9)-'Multiple Sire Hidden'!N9),"--")) -> -- | L59: =IF(L10="","--",IFERROR(IF(C10=0,"",(L10+'Multiple Sire Hidden'!F9)-'Multiple Sire Hidden'!O9),"--")) -> -- | M59: =IF(M10="","--",IFERROR(IF(C10=0,"",(M10+'Multiple Sire Hidden'!G9)-'Multiple Sire Hidden'!P9),"--")) -> -- | N59: =IF(N10="","--",IFERROR(IF(C10=0,"",(N10+'Multiple Sire Hidden'!H9)-'Multiple Sire Hidden'!Q9),"--")) -> --
F60: =IF(F11="","--",IFERROR(IF(C11=0,"",(F11+'Multiple Sire Hidden'!A10)-'Multiple Sire Hidden'!J10),"--")) -> -- | G60: =(VLOOKUP($G$52,'Breed Table'!$A$5:$I$23,3)) -> 1.4 | H60: =IF(H11="","--",IFERROR(IF(C11=0,"",(H11+'Multiple Sire Hidden'!B10)-'Multiple Sire Hidden'!K10),"--")) -> -- | I60: =IF(I11="","--",IFERROR(IF(C11=0,"",(I11+'Multiple Sire Hidden'!C10)-'Multiple Sire Hidden'!L10),"--")) -> -- | J60: =IF(J11="","--",IFERROR(IF(C11=0,"",(J11+'Multiple Sire Hidden'!D10)-'Multiple Sire Hidden'!M10),"--")) -> -- | K60: =IF(K11="","--",IFERROR(IF(C11=0,"",(K11+'Multiple Sire Hidden'!E10)-'Multiple Sire Hidden'!N10),"--")) -> -- | L60: =IF(L11="","--",IFERROR(IF(C11=0,"",(L11+'Multiple Sire Hidden'!F10)-'Multiple Sire Hidden'!O10),"--")) -> -- | M60: =IF(M11="","--",IFERROR(IF(C11=0,"",(M11+'Multiple Sire Hidden'!G10)-'Multiple Sire Hidden'!P10),"--")) -> -- | N60: =IF(N11="","--",IFERROR(IF(C11=0,"",(N11+'Multiple Sire Hidden'!H10)-'Multiple Sire Hidden'!Q10),"--")) -> --
F61: =IF(F12="","--",IFERROR(IF(C12=0,"",(F12+'Multiple Sire Hidden'!A11)-'Multiple Sire Hidden'!J11),"--")) -> -- | G61: =(VLOOKUP($G$52,'Breed Table'!$A$5:$I$23,3)) -> 1.4 | H61: =IF(H12="","--",IFERROR(IF(C12=0,"",(H12+'Multiple Sire Hidden'!B11)-'Multiple Sire Hidden'!K11),"--")) -> -- | I61: =IF(I12="","--",IFERROR(IF(C12=0,"",(I12+'Multiple Sire Hidden'!C11)-'Multiple Sire Hidden'!L11),"--")) -> -- | J61: =IF(J12="","--",IFERROR(IF(C12=0,"",(J12+'Multiple Sire Hidden'!D11)-'Multiple Sire Hidden'!M11),"--")) -> -- | K61: =IF(K12="","--",IFERROR(IF(C12=0,"",(K12+'Multiple Sire Hidden'!E11)-'Multiple Sire Hidden'!N11),"--")) -> -- | L61: =IF(L12="","--",IFERROR(IF(C12=0,"",(L12+'Multiple Sire Hidden'!F11)-'Multiple Sire Hidden'!O11),"--")) -> -- | M61: =IF(M12="","--",IFERROR(IF(C12=0,"",(M12+'Multiple Sire Hidden'!G11)-'Multiple Sire Hidden'!P11),"--")) -> -- | N61: =IF(N12="","--",IFERROR(IF(C12=0,"",(N12+'Multiple Sire Hidden'!H11)-'Multiple Sire Hidden'!Q11),"--")) -> --
F62: =IF(F13="","--",IFERROR(IF(C13=0,"",(F13+'Multiple Sire Hidden'!A12)-'Multiple Sire Hidden'!J12),"--")) -> -- | G62: =(VLOOKUP($G$52,'Breed Table'!$A$5:$I$23,3)) -> 1.4 | H62: =IF(H13="","--",IFERROR(IF(C13=0,"",(H13+'Multiple Sire Hidden'!B12)-'Multiple Sire Hidden'!K12),"--")) -> -- | I62: =IF(I13="","--",IFERROR(IF(C13=0,"",(I13+'Multiple Sire Hidden'!C12)-'Multiple Sire Hidden'!L12),"--")) -> -- | J62: =IF(J13="","--",IFERROR(IF(C13=0,"",(J13+'Multiple Sire Hidden'!D12)-'Multiple Sire Hidden'!M12),"--")) -> -- | K62: =IF(K13="","--",IFERROR(IF(C13=0,"",(K13+'Multiple Sire Hidden'!E12)-'Multiple Sire Hidden'!N12),"--")) -> -- | L62: =IF(L13="","--",IFERROR(IF(C13=0,"",(L13+'Multiple Sire Hidden'!F12)-'Multiple Sire Hidden'!O12),"--")) -> -- | M62: =IF(M13="","--",IFERROR(IF(C13=0,"",(M13+'Multiple Sire Hidden'!G12)-'Multiple Sire Hidden'!P12),"--")) -> -- | N62: =IF(N13="","--",IFERROR(IF(C13=0,"",(N13+'Multiple Sire Hidden'!H12)-'Multiple Sire Hidden'!Q12),"--")) -> --
F63: =IF(F14="","--",IFERROR(IF(C14=0,"",(F14+'Multiple Sire Hidden'!A13)-'Multiple Sire Hidden'!J13),"--")) -> -- | G63: =(VLOOKUP($G$52,'Breed Table'!$A$5:$I$23,3)) -> 1.4 | H63: =IF(H14="","--",IFERROR(IF(C14=0,"",(H14+'Multiple Sire Hidden'!B13)-'Multiple Sire Hidden'!K13),"--")) -> -- | I63: =IF(I14="","--",IFERROR(IF(C14=0,"",(I14+'Multiple Sire Hidden'!C13)-'Multiple Sire Hidden'!L13),"--")) -> -- | J63: =IF(J14="","--",IFERROR(IF(C14=0,"",(J14+'Multiple Sire Hidden'!D13)-'Multiple Sire Hidden'!M13),"--")) -> -- | K63: =IF(K14="","--",IFERROR(IF(C14=0,"",(K14+'Multiple Sire Hidden'!E13)-'Multiple Sire Hidden'!N13),"--")) -> -- | L63: =IF(L14="","--",IFERROR(IF(C14=0,"",(L14+'Multiple Sire Hidden'!F13)-'Multiple Sire Hidden'!O13),"--")) -> -- | M63: =IF(M14="","--",IFERROR(IF(C14=0,"",(M14+'Multiple Sire Hidden'!G13)-'Multiple Sire Hidden'!P13),"--")) -> -- | N63: =IF(N14="","--",IFERROR(IF(C14=0,"",(N14+'Multiple Sire Hidden'!H13)-'Multiple Sire Hidden'!Q13),"--")) -> --
F64: =IF(F15="","--",IFERROR(IF(C15=0,"",(F15+'Multiple Sire Hidden'!A14)-'Multiple Sire Hidden'!J14),"--")) -> -- | G64: =(VLOOKUP($G$52,'Breed Table'!$A$5:$I$23,3)) -> 1.4 | H64: =IF(H15="","--",IFERROR(IF(C15=0,"",(H15+'Multiple Sire Hidden'!B14)-'Multiple Sire Hidden'!K14),"--")) -> -- | I64: =IF(I15="","--",IFERROR(IF(C15=0,"",(I15+'Multiple Sire Hidden'!C14)-'Multiple Sire Hidden'!L14),"--")) -> -- | J64: =IF(J15="","--",IFERROR(IF(C15=0,"",(J15+'Multiple Sire Hidden'!D14)-'Multiple Sire Hidden'!M14),"--")) -> -- | K64: =IF(K15="","--",IFERROR(IF(C15=0,"",(K15+'Multiple Sire Hidden'!E14)-'Multiple Sire Hidden'!N14),"--")) -> -- | L64: =IF(L15="","--",IFERROR(IF(C15=0,"",(L15+'Multiple Sire Hidden'!F14)-'Multiple Sire Hidden'!O14),"--")) -> -- | M64: =IF(M15="","--",IFERROR(IF(C15=0,"",(M15+'Multiple Sire Hidden'!G14)-'Multiple Sire Hidden'!P14),"--")) -> -- | N64: =IF(N15="","--",IFERROR(IF(C15=0,"",(N15+'Multiple Sire Hidden'!H14)-'Multiple Sire Hidden'!Q14),"--")) -> --
F65: =IF(F16="","--",IFERROR(IF(C16=0,"",(F16+'Multiple Sire Hidden'!A15)-'Multiple Sire Hidden'!J15),"--")) -> -- | G65: =(VLOOKUP($G$52,'Breed Table'!$A$5:$I$23,3)) -> 1.4 | H65: =IF(H16="","--",IFERROR(IF(C16=0,"",(H16+'Multiple Sire Hidden'!B15)-'Multiple Sire Hidden'!K15),"--")) -> -- | I65: =IF(I16="","--",IFERROR(IF(C16=0,"",(I16+'Multiple Sire Hidden'!C15)-'Multiple Sire Hidden'!L15),"--")) -> -- | J65: =IF(J16="","--",IFERROR(IF(C16=0,"",(J16+'Multiple Sire Hidden'!D15)-'Multiple Sire Hidden'!M15),"--")) -> -- | K65: =IF(K16="","--",IFERROR(IF(C16=0,"",(K16+'Multiple Sire Hidden'!E15)-'Multiple Sire Hidden'!N15),"--")) -> -- | L65: =IF(L16="","--",IFERROR(IF(C16=0,"",(L16+'Multiple Sire Hidden'!F15)-'Multiple Sire Hidden'!O15),"--")) -> -- | M65: =IF(M16="","--",IFERROR(IF(C16=0,"",(M16+'Multiple Sire Hidden'!G15)-'Multiple Sire Hidden'!P15),"--")) -> -- | N65: =IF(N16="","--",IFERROR(IF(C16=0,"",(N16+'Multiple Sire Hidden'!H15)-'Multiple Sire Hidden'!Q15),"--")) -> --
F66: =IF(F17="","--",IFERROR(IF(C17=0,"",(F17+'Multiple Sire Hidden'!A16)-'Multiple Sire Hidden'!J16),"--")) -> -- | G66: =(VLOOKUP($G$52,'Breed Table'!$A$5:$I$23,3)) -> 1.4 | H66: =IF(H17="","--",IFERROR(IF(C17=0,"",(H17+'Multiple Sire Hidden'!B16)-'Multiple Sire Hidden'!K16),"--")) -> -- | I66: =IF(I17="","--",IFERROR(IF(C17=0,"",(I17+'Multiple Sire Hidden'!C16)-'Multiple Sire Hidden'!L16),"--")) -> -- | J66: =IF(J17="","--",IFERROR(IF(C17=0,"",(J17+'Multiple Sire Hidden'!D16)-'Multiple Sire Hidden'!M16),"--")) -> -- | K66: =IF(K17="","--",IFERROR(IF(C17=0,"",(K17+'Multiple Sire Hidden'!E16)-'Multiple Sire Hidden'!N16),"--")) -> -- | L66: =IF(L17="","--",IFERROR(IF(C17=0,"",(L17+'Multiple Sire Hidden'!F16)-'Multiple Sire Hidden'!O16),"--")) -> -- | M66: =IF(M17="","--",IFERROR(IF(C17=0,"",(M17+'Multiple Sire Hidden'!G16)-'Multiple Sire Hidden'!P16),"--")) -> -- | N66: =IF(N17="","--",IFERROR(IF(C17=0,"",(N17+'Multiple Sire Hidden'!H16)-'Multiple Sire Hidden'!Q16),"--")) -> --
F67: =IF(F18="","--",IFERROR(IF(C18=0,"",(F18+'Multiple Sire Hidden'!A17)-'Multiple Sire Hidden'!J17),"--")) -> -- | G67: =(VLOOKUP($G$52,'Breed Table'!$A$5:$I$23,3)) -> 1.4 | H67: =IF(H18="","--",IFERROR(IF(C18=0,"",(H18+'Multiple Sire Hidden'!B17)-'Multiple Sire Hidden'!K17),"--")) -> -- | I67: =IF(I18="","--",IFERROR(IF(C18=0,"",(I18+'Multiple Sire Hidden'!C17)-'Multiple Sire Hidden'!L17),"--")) -> -- | J67: =IF(J18="","--",IFERROR(IF(C18=0,"",(J18+'Multiple Sire Hidden'!D17)-'Multiple Sire Hidden'!M17),"--")) -> -- | K67: =IF(K18="","--",IFERROR(IF(C18=0,"",(K18+'Multiple Sire Hidden'!E17)-'Multiple Sire Hidden'!N17),"--")) -> -- | L67: =IF(L18="","--",IFERROR(IF(C18=0,"",(L18+'Multiple Sire Hidden'!F17)-'Multiple Sire Hidden'!O17),"--")) -> -- | M67: =IF(M18="","--",IFERROR(IF(C18=0,"",(M18+'Multiple Sire Hidden'!G17)-'Multiple Sire Hidden'!P17),"--")) -> -- | N67: =IF(N18="","--",IFERROR(IF(C18=0,"",(N18+'Multiple Sire Hidden'!H17)-'Multiple Sire Hidden'!Q17),"--")) -> --
F68: =IF(F19="","--",IFERROR(IF(C19=0,"",(F19+'Multiple Sire Hidden'!A18)-'Multiple Sire Hidden'!J18),"--")) -> -- | G68: =(VLOOKUP($G$52,'Breed Table'!$A$5:$I$23,3)) -> 1.4 | H68: =IF(H19="","--",IFERROR(IF(C19=0,"",(H19+'Multiple Sire Hidden'!B18)-'Multiple Sire Hidden'!K18),"--")) -> -- | I68: =IF(I19="","--",IFERROR(IF(C19=0,"",(I19+'Multiple Sire Hidden'!C18)-'Multiple Sire Hidden'!L18),"--")) -> -- | J68: =IF(J19="","--",IFERROR(IF(C19=0,"",(J19+'Multiple Sire Hidden'!D18)-'Multiple Sire Hidden'!M18),"--")) -> -- | K68: =IF(K19="","--",IFERROR(IF(C19=0,"",(K19+'Multiple Sire Hidden'!E18)-'Multiple Sire Hidden'!N18),"--")) -> -- | L68: =IF(L19="","--",IFERROR(IF(C19=0,"",(L19+'Multiple Sire Hidden'!F18)-'Multiple Sire Hidden'!O18),"--")) -> -- | M68: =IF(M19="","--",IFERROR(IF(C19=0,"",(M19+'Multiple Sire Hidden'!G18)-'Multiple Sire Hidden'!P18),"--")) -> -- | N68: =IF(N19="","--",IFERROR(IF(C19=0,"",(N19+'Multiple Sire Hidden'!H18)-'Multiple Sire Hidden'!Q18),"--")) -> --
F69: =IF(F20="","--",IFERROR(IF(C20=0,"",(F20+'Multiple Sire Hidden'!A19)-'Multiple Sire Hidden'!J19),"--")) -> -- | G69: =(VLOOKUP($G$52,'Breed Table'!$A$5:$I$23,3)) -> 1.4 | H69: =IF(H20="","--",IFERROR(IF(C20=0,"",(H20+'Multiple Sire Hidden'!B19)-'Multiple Sire Hidden'!K19),"--")) -> -- | I69: =IF(I20="","--",IFERROR(IF(C20=0,"",(I20+'Multiple Sire Hidden'!C19)-'Multiple Sire Hidden'!L19),"--")) -> -- | J69: =IF(J20="","--",IFERROR(IF(C20=0,"",(J20+'Multiple Sire Hidden'!D19)-'Multiple Sire Hidden'!M19),"--")) -> -- | K69: =IF(K20="","--",IFERROR(IF(C20=0,"",(K20+'Multiple Sire Hidden'!E19)-'Multiple Sire Hidden'!N19),"--")) -> -- | L69: =IF(L20="","--",IFERROR(IF(C20=0,"",(L20+'Multiple Sire Hidden'!F19)-'Multiple Sire Hidden'!O19),"--")) -> -- | M69: =IF(M20="","--",IFERROR(IF(C20=0,"",(M20+'Multiple Sire Hidden'!G19)-'Multiple Sire Hidden'!P19),"--")) -> -- | N69: =IF(N20="","--",IFERROR(IF(C20=0,"",(N20+'Multiple Sire Hidden'!H19)-'Multiple Sire Hidden'!Q19),"--")) -> --
F70: =IF(F21="","--",IFERROR(IF(C21=0,"",(F21+'Multiple Sire Hidden'!A20)-'Multiple Sire Hidden'!J20),"--")) -> -- | G70: =(VLOOKUP($G$52,'Breed Table'!$A$5:$I$23,3)) -> 1.4 | H70: =IF(H21="","--",IFERROR(IF(C21=0,"",(H21+'Multiple Sire Hidden'!B20)-'Multiple Sire Hidden'!K20),"--")) -> -- | I70: =IF(I21="","--",IFERROR(IF(C21=0,"",(I21+'Multiple Sire Hidden'!C20)-'Multiple Sire Hidden'!L20),"--")) -> -- | J70: =IF(J21="","--",IFERROR(IF(C21=0,"",(J21+'Multiple Sire Hidden'!D20)-'Multiple Sire Hidden'!M20),"--")) -> -- | K70: =IF(K21="","--",IFERROR(IF(C21=0,"",(K21+'Multiple Sire Hidden'!E20)-'Multiple Sire Hidden'!N20),"--")) -> -- | L70: =IF(L21="","--",IFERROR(IF(C21=0,"",(L21+'Multiple Sire Hidden'!F20)-'Multiple Sire Hidden'!O20),"--")) -> -- | M70: =IF(M21="","--",IFERROR(IF(C21=0,"",(M21+'Multiple Sire Hidden'!G20)-'Multiple Sire Hidden'!P20),"--")) -> -- | N70: =IF(N21="","--",IFERROR(IF(C21=0,"",(N21+'Multiple Sire Hidden'!H20)-'Multiple Sire Hidden'!Q20),"--")) -> --
F71: =IF(F22="","--",IFERROR(IF(C22=0,"",(F22+'Multiple Sire Hidden'!A21)-'Multiple Sire Hidden'!J21),"--")) -> -- | G71: =(VLOOKUP($G$52,'Breed Table'!$A$5:$I$23,3)) -> 1.4 | H71: =IF(H22="","--",IFERROR(IF(C22=0,"",(H22+'Multiple Sire Hidden'!B21)-'Multiple Sire Hidden'!K21),"--")) -> -- | I71: =IF(I22="","--",IFERROR(IF(C22=0,"",(I22+'Multiple Sire Hidden'!C21)-'Multiple Sire Hidden'!L21),"--")) -> -- | J71: =IF(J22="","--",IFERROR(IF(C22=0,"",(J22+'Multiple Sire Hidden'!D21)-'Multiple Sire Hidden'!M21),"--")) -> -- | K71: =IF(K22="","--",IFERROR(IF(C22=0,"",(K22+'Multiple Sire Hidden'!E21)-'Multiple Sire Hidden'!N21),"--")) -> -- | L71: =IF(L22="","--",IFERROR(IF(C22=0,"",(L22+'Multiple Sire Hidden'!F21)-'Multiple Sire Hidden'!O21),"--")) -> -- | M71: =IF(M22="","--",IFERROR(IF(C22=0,"",(M22+'Multiple Sire Hidden'!G21)-'Multiple Sire Hidden'!P21),"--")) -> -- | N71: =IF(N22="","--",IFERROR(IF(C22=0,"",(N22+'Multiple Sire Hidden'!H21)-'Multiple Sire Hidden'!Q21),"--")) -> --
F72: =IF(F23="","--",IFERROR(IF(C23=0,"",(F23+'Multiple Sire Hidden'!A22)-'Multiple Sire Hidden'!J22),"--")) -> -- | G72: =(VLOOKUP($G$52,'Breed Table'!$A$5:$I$23,3)) -> 1.4 | H72: =IF(H23="","--",IFERROR(IF(C23=0,"",(H23+'Multiple Sire Hidden'!B22)-'Multiple Sire Hidden'!K22),"--")) -> -- | I72: =IF(I23="","--",IFERROR(IF(C23=0,"",(I23+'Multiple Sire Hidden'!C22)-'Multiple Sire Hidden'!L22),"--")) -> -- | J72: =IF(J23="","--",IFERROR(IF(C23=0,"",(J23+'Multiple Sire Hidden'!D22)-'Multiple Sire Hidden'!M22),"--")) -> -- | K72: =IF(K23="","--",IFERROR(IF(C23=0,"",(K23+'Multiple Sire Hidden'!E22)-'Multiple Sire Hidden'!N22),"--")) -> -- | L72: =IF(L23="","--",IFERROR(IF(C23=0,"",(L23+'Multiple Sire Hidden'!F22)-'Multiple Sire Hidden'!O22),"--")) -> -- | M72: =IF(M23="","--",IFERROR(IF(C23=0,"",(M23+'Multiple Sire Hidden'!G22)-'Multiple Sire Hidden'!P22),"--")) -> -- | N72: =IF(N23="","--",IFERROR(IF(C23=0,"",(N23+'Multiple Sire Hidden'!H22)-'Multiple Sire Hidden'!Q22),"--")) -> --
F73: =IF(F24="","--",IFERROR(IF(C24=0,"",(F24+'Multiple Sire Hidden'!A23)-'Multiple Sire Hidden'!J23),"--")) -> -- | G73: =(VLOOKUP($G$52,'Breed Table'!$A$5:$I$23,3)) -> 1.4 | H73: =IF(H24="","--",IFERROR(IF(C24=0,"",(H24+'Multiple Sire Hidden'!B23)-'Multiple Sire Hidden'!K23),"--")) -> -- | I73: =IF(I24="","--",IFERROR(IF(C24=0,"",(I24+'Multiple Sire Hidden'!C23)-'Multiple Sire Hidden'!L23),"--")) -> -- | J73: =IF(J24="","--",IFERROR(IF(C24=0,"",(J24+'Multiple Sire Hidden'!D23)-'Multiple Sire Hidden'!M23),"--")) -> -- | K73: =IF(K24="","--",IFERROR(IF(C24=0,"",(K24+'Multiple Sire Hidden'!E23)-'Multiple Sire Hidden'!N23),"--")) -> -- | L73: =IF(L24="","--",IFERROR(IF(C24=0,"",(L24+'Multiple Sire Hidden'!F23)-'Multiple Sire Hidden'!O23),"--")) -> -- | M73: =IF(M24="","--",IFERROR(IF(C24=0,"",(M24+'Multiple Sire Hidden'!G23)-'Multiple Sire Hidden'!P23),"--")) -> -- | N73: =IF(N24="","--",IFERROR(IF(C24=0,"",(N24+'Multiple Sire Hidden'!H23)-'Multiple Sire Hidden'!Q23),"--")) -> --

Sheet Multiple Sire Hidden (hidden)
A2: II | J2: III
A3: Across-Breed Adjustment (BW) | B3: Across-Breed Adjustment (WW) | C3: Across-Breed Adjustment (YW) | D3: Across-Breed Adjustment (MM) | E3: Across-Breed Adjustment (Marbling) | F3: Across-Breed Adjustment (REA) | G3: Across-Breed Adjustment (Fat) | H3: Across-Breed Adjustment (CW) | J3: Across-Breed Adjustment (BW) | K3: Across-Breed Adjustment (WW) | L3: Across-Breed Adjustment (YW) | M3: Across-Breed Adjustment (MM) | N3: Across-Breed Adjustment (Marbling) | O3: Across-Breed Adjustment (REA) | P3: Across-Breed Adjustment (Fat) | Q3: Across-Breed Adjustment (CW)
A4: =VLOOKUP('Compare Mulitple Sires'!C5,'Breed Table'!A$5:J$22,3) -> 0 | B4: =VLOOKUP('Compare Mulitple Sires'!C5,'Breed Table'!A$5:J$22,4) -> 0 | C4: =VLOOKUP('Compare Mulitple Sires'!C5,'Breed Table'!A$5:J$22,5) -> 0 | D4: =VLOOKUP('Compare Mulitple Sires'!C5,'Breed Table'!A$5:J$22,6) -> 0 | E4: =VLOOKUP('Compare Mulitple Sires'!C5,'Breed Table'!A$5:J$22,7) -> 0 | F4: =VLOOKUP('Compare Mulitple Sires'!C5,'Breed Table'!A$5:J$22,8) -> 0 | G4: =VLOOKUP('Compare Mulitple Sires'!C5,'Breed Table'!A$5:J$22,9) -> 0 | H4: =VLOOKUP('Compare Mulitple Sires'!C5,'Breed Table'!A$5:J$22,10) -> 0 | J4: =VLOOKUP('Compare Mulitple Sires'!$G$52,'Breed Table'!A$5:J$22,3) -> 1.4 | K4: =VLOOKUP('Compare Mulitple Sires'!$G$52,'Breed Table'!A$5:J$22,4) -> -16.5 | L4: =VLOOKUP('Compare Mulitple Sires'!$G$52,'Breed Table'!A$5:J$22,5) -> -44.4 | M4: =VLOOKUP('Compare Mulitple Sires'!$G$52,'Breed Table'!A$5:J$22,6) -> -12.5 | N4: =VLOOKUP('Compare Mulitple Sires'!$G$52,'Breed Table'!A$5:J$22,7) -> -0.3 | O4: =VLOOKUP('Compare Mulitple Sires'!$G$52,'Breed Table'!A$5:J$22,8) -> 0.02 | P4: =VLOOKUP('Compare Mulitple Sires'!$G$52,'Breed Table'!A$5:J$22,9) -> -0.073 | Q4: =VLOOKUP('Compare Mulitple Sires'!$G$52,'Breed Table'!A$5:J$22,10) -> -41.1
A5: =VLOOKUP('Compare Mulitple Sires'!C6,'Breed Table'!A$5:J$22,3) -> 2.6 | B5: =VLOOKUP('Compare Mulitple Sires'!C6,'Breed Table'!A$5:J$22,4) -> -19.4 | C5: =VLOOKUP('Compare Mulitple Sires'!C6,'Breed Table'!A$5:J$22,5) -> -31.4 | D5: =VLOOKUP('Compare Mulitple Sires'!C6,'Breed Table'!A$5:J$22,6) -> 1.5 | E5: =VLOOKUP('Compare Mulitple Sires'!C6,'Breed Table'!A$5:J$22,7) -> -0.03 | F5: =VLOOKUP('Compare Mulitple Sires'!C6,'Breed Table'!A$5:J$22,8) -> 0.25 | G5: =VLOOKUP('Compare Mulitple Sires'!C6,'Breed Table'!A$5:J$22,9) -> -0.04 | H5: =VLOOKUP('Compare Mulitple Sires'!C6,'Breed Table'!A$5:J$22,10) -> -13.2 | J5: =VLOOKUP('Compare Mulitple Sires'!$G$52,'Breed Table'!A$5:J$22,3) -> 1.4 | K5: =VLOOKUP('Compare Mulitple Sires'!$G$52,'Breed Table'!A$5:J$22,4) -> -16.5 | L5: =VLOOKUP('Compare Mulitple Sires'!$G$52,'Breed Table'!A$5:J$22,5) -> -44.4 | M5: =VLOOKUP('Compare Mulitple Sires'!$G$52,'Breed Table'!A$5:J$22,6) -> -12.5 | N5: =VLOOKUP('Compare Mulitple Sires'!$G$52,'Breed Table'!A$5:J$22,7) -> -0.3 | O5: =VLOOKUP('Compare Mulitple Sires'!$G$52,'Breed Table'!A$5:J$22,8) -> 0.02 | P5: =VLOOKUP('Compare Mulitple Sires'!$G$52,'Breed Table'!A$5:J$22,9) -> -0.073 | Q5: =VLOOKUP('Compare Mulitple Sires'!$G$52,'Breed Table'!A$5:J$22,10) -> -41.1
A6: =VLOOKUP('Compare Mulitple Sires'!C7,'Breed Table'!A$5:J$22,3) -> 2.8 | B6: =VLOOKUP('Compare Mulitple Sires'!C7,'Breed Table'!A$5:J$22,4) -> -11.6 | C6: =VLOOKUP('Compare Mulitple Sires'!C7,'Breed Table'!A$5:J$22,5) -> -19.2 | D6: =VLOOKUP('Compare Mulitple Sires'!C7,'Breed Table'!A$5:J$22,6) -> 1.8 | E6: =VLOOKUP('Compare Mulitple Sires'!C7,'Breed Table'!A$5:J$22,7) -> -0.12 | F6: =VLOOKUP('Compare Mulitple Sires'!C7,'Breed Table'!A$5:J$22,8) -> 0.45 | G6: =VLOOKUP('Compare Mulitple Sires'!C7,'Breed Table'!A$5:J$22,9) -> -0.049 | H6: =VLOOKUP('Compare Mulitple Sires'!C7,'Breed Table'!A$5:J$22,10) -> -7.5 | J6: =VLOOKUP('Compare Mulitple Sires'!$G$52,'Breed Table'!A$5:J$22,3) -> 1.4 | K6: =VLOOKUP('Compare Mulitple Sires'!$G$52,'Breed Table'!A$5:J$22,4) -> -16.5 | L6: =VLOOKUP('Compare Mulitple Sires'!$G$52,'Breed Table'!A$5:J$22,5) -> -44.4 | M6: =VLOOKUP('Compare Mulitple Sires'!$G$52,'Breed Table'!A$5:J$22,6) -> -12.5 | N6: =VLOOKUP('Compare Mulitple Sires'!$G$52,'Breed Table'!A$5:J$22,7) -> -0.3 | O6: =VLOOKUP('Compare Mulitple Sires'!$G$52,'Breed Table'!A$5:J$22,8) -> 0.02 | P6: =VLOOKUP('Compare Mulitple Sires'!$G$52,'Breed Table'!A$5:J$22,9) -> -0.073 | Q6: =VLOOKUP('Compare Mulitple Sires'!$G$52,'Breed Table'!A$5:J$22,10) -> -41.1
A7: =VLOOKUP('Compare Mulitple Sires'!C8,'Breed Table'!A$5:J$22,3) -> 1.4 | B7: =VLOOKUP('Compare Mulitple Sires'!C8,'Breed Table'!A$5:J$22,4) -> -16.5 | C7: =VLOOKUP('Compare Mulitple Sires'!C8,'Breed Table'!A$5:J$22,5) -> -44.4 | D7: =VLOOKUP('Compare Mulitple Sires'!C8,'Breed Table'!A$5:J$22,6) -> -12.5 | E7: =VLOOKUP('Compare Mulitple Sires'!C8,'Breed Table'!A$5:J$22,7) -> -0.3 | F7: =VLOOKUP('Compare Mulitple Sires'!C8,'Breed Table'!A$5:J$22,8) -> 0.02 | G7: =VLOOKUP('Compare Mulitple Sires'!C8,'Breed Table'!A$5:J$22,9) -> -0.073 | H7: =VLOOKUP('Compare Mulitple Sires'!C8,'Breed Table'!A$5:J$22,10) -> -41.1 | J7: =VLOOKUP('Compare Mulitple Sires'!$G$52,'Breed Table'!A$5:J$22,3) -> 1.4 | K7: =VLOOKUP('Compare Mulitple Sires'!$G$52,'Breed Table'!A$5:J$22,4) -> -16.5 | L7: =VLOOKUP('Compare Mulitple Sires'!$G$52,'Breed Table'!A$5:J$22,5) -> -44.4 | M7: =VLOOKUP('Compare Mulitple Sires'!$G$52,'Breed Table'!A$5:J$22,6) -> -12.5 | N7: =VLOOKUP('Compare Mulitple Sires'!$G$52,'Breed Table'!A$5:J$22,7) -> -0.3 | O7: =VLOOKUP('Compare Mulitple Sires'!$G$52,'Breed Table'!A$5:J$22,8) -> 0.02 | P7: =VLOOKUP('Compare Mulitple Sires'!$G$52,'Breed Table'!A$5:J$22,9) -> -0.073 | Q7: =VLOOKUP('Compare Mulitple Sires'!$G$52,'Breed Table'!A$5:J$22,10) -> -41.1
A8: =VLOOKUP('Compare Mulitple Sires'!C9,'Breed Table'!A$5:J$22,3) ->  | B8: =VLOOKUP('Compare Mulitple Sires'!C9,'Breed Table'!A$5:J$22,4) ->  | C8: =VLOOKUP('Compare Mulitple Sires'!C9,'Breed Table'!A$5:J$22,5) ->  | D8: =VLOOKUP('Compare Mulitple Sires'!C9,'Breed Table'!A$5:J$22,6) ->  | E8: =VLOOKUP('Compare Mulitple Sires'!C9,'Breed Table'!A$5:J$22,7) ->  | F8: =VLOOKUP('Compare Mulitple Sires'!C9,'Breed Table'!A$5:J$22,8) ->  | G8: =VLOOKUP('Compare Mulitple Sires'!C9,'Breed Table'!A$5:J$22,9) ->  | H8: =VLOOKUP('Compare Mulitple Sires'!C9,'Breed Table'!A$5:J$22,10) ->  | J8: =VLOOKUP('Compare Mulitple Sires'!$G$52,'Breed Table'!A$5:J$22,3) -> 1.4 | K8: =VLOOKUP('Compare Mulitple Sires'!$G$52,'Breed Table'!A$5:J$22,4) -> -16.5 | L8: =VLOOKUP('Compare Mulitple Sires'!$G$52,'Breed Table'!A$5:J$22,5) -> -44.4 | M8: =VLOOKUP('Compare Mulitple Sires'!$G$52,'Breed Table'!A$5:J$22,6) -> -12.5 | N8: =VLOOKUP('Compare Mulitple Sires'!$G$52,'Breed Table'!A$5:J$22,7) -> -0.3 | O8: =VLOOKUP('Compare Mulitple Sires'!$G$52,'Breed Table'!A$5:J$22,8) -> 0.02 | P8: =VLOOKUP('Compare Mulitple Sires'!$G$52,'Breed Table'!A$5:J$22,9) -> -0.073 | Q8: =VLOOKUP('Compare Mulitple Sires'!$G$52,'Breed Table'!A$5:J$22,10) -> -41.1
A9: =VLOOKUP('Compare Mulitple Sires'!C10,'Breed Table'!A$5:J$22,3) ->  | B9: =VLOOKUP('Compare Mulitple Sires'!C10,'Breed Table'!A$5:J$22,4) ->  | C9: =VLOOKUP('Compare Mulitple Sires'!C10,'Breed Table'!A$5:J$22,5) ->  | D9: =VLOOKUP('Compare Mulitple Sires'!C10,'Breed Table'!A$5:J$22,6) ->  | E9: =VLOOKUP('Compare Mulitple Sires'!C10,'Breed Table'!A$5:J$22,7) ->  | F9: =VLOOKUP('Compare Mulitple Sires'!C10,'Breed Table'!A$5:J$22,8) ->  | G9: =VLOOKUP('Compare Mulitple Sires'!C10,'Breed Table'!A$5:J$22,9) ->  | H9: =VLOOKUP('Compare Mulitple Sires'!C10,'Breed Table'!A$5:J$22,10) ->  | J9: =VLOOKUP('Compare Mulitple Sires'!$G$52,'Breed Table'!A$5:J$22,3) -> 1.4 | K9: =VLOOKUP('Compare Mulitple Sires'!$G$52,'Breed Table'!A$5:J$22,4) -> -16.5 | L9: =VLOOKUP('Compare Mulitple Sires'!$G$52,'Breed Table'!A$5:J$22,5) -> -44.4 | M9: =VLOOKUP('Compare Mulitple Sires'!$G$52,'Breed Table'!A$5:J$22,6) -> -12.5 | N9: =VLOOKUP('Compare Mulitple Sires'!$G$52,'Breed Table'!A$5:J$22,7) -> -0.3 | O9: =VLOOKUP('Compare Mulitple Sires'!$G$52,'Breed Table'!A$5:J$22,8) -> 0.02 | P9: =VLOOKUP('Compare Mulitple Sires'!$G$52,'Breed Table'!A$5:J$22,9) -> -0.073 | Q9: =VLOOKUP('Compare Mulitple Sires'!$G$52,'Breed Table'!A$5:J$22,10) -> -41.1
A10: =VLOOKUP('Compare Mulitple Sires'!C11,'Breed Table'!A$5:J$22,3) ->  | B10: =VLOOKUP('Compare Mulitple Sires'!C11,'Breed Table'!A$5:J$22,4) ->  | C10: =VLOOKUP('Compare Mulitple Sires'!C11,'Breed Table'!A$5:J$22,5) ->  | D10: =VLOOKUP('Compare Mulitple Sires'!C11,'Breed Table'!A$5:J$22,6) ->  | E10: =VLOOKUP('Compare Mulitple Sires'!C11,'Breed Table'!A$5:J$22,7) ->  | F10: =VLOOKUP('Compare Mulitple Sires'!C11,'Breed Table'!A$5:J$22,8) ->  | G10: =VLOOKUP('Compare Mulitple Sires'!C11,'Breed Table'!A$5:J$22,9) ->  | H10: =VLOOKUP('Compare Mulitple Sires'!C11,'Breed Table'!A$5:J$22,10) ->  | J10: =VLOOKUP('Compare Mulitple Sires'!$G$52,'Breed Table'!A$5:J$22,3) -> 1.4 | K10: =VLOOKUP('Compare Mulitple Sires'!$G$52,'Breed Table'!A$5:J$22,4) -> -16.5 | L10: =VLOOKUP('Compare Mulitple Sires'!$G$52,'Breed Table'!A$5:J$22,5) -> -44.4 | M10: =VLOOKUP('Compare Mulitple Sires'!$G$52,'Breed Table'!A$5:J$22,6) -> -12.5 | N10: =VLOOKUP('Compare Mulitple Sires'!$G$52,'Breed Table'!A$5:J$22,7) -> -0.3 | O10: =VLOOKUP('Compare Mulitple Sires'!$G$52,'Breed Table'!A$5:J$22,8) -> 0.02 | P10: =VLOOKUP('Compare Mulitple Sires'!$G$52,'Breed Table'!A$5:J$22,9) -> -0.073 | Q10: =VLOOKUP('Compare Mulitple Sires'!$G$52,'Breed Table'!A$5:J$22,10) -> -41.1
A11: =VLOOKUP('Compare Mulitple Sires'!C12,'Breed Table'!A$5:J$22,3) ->  | B11: =VLOOKUP('Compare Mulitple Sires'!C12,'Breed Table'!A$5:J$22,4) ->  | C11: =VLOOKUP('Compare Mulitple Sires'!C12,'Breed Table'!A$5:J$22,5) ->  | D11: =VLOOKUP('Compare Mulitple Sires'!C12,'Breed Table'!A$5:J$22,6) ->  | E11: =VLOOKUP('Compare Mulitple Sires'!C12,'Breed Table'!A$5:J$22,7) ->  | F11: =VLOOKUP('Compare Mulitple Sires'!C12,'Breed Table'!A$5:J$22,8) ->  | G11: =VLOOKUP('Compare Mulitple Sires'!C12,'Breed Table'!A$5:J$22,9) ->  | H11: =VLOOKUP('Compare Mulitple Sires'!C12,'Breed Table'!A$5:J$22,10) ->  | J11: =VLOOKUP('Compare Mulitple Sires'!$G$52,'Breed Table'!A$5:J$22,3) -> 1.4 | K11: =VLOOKUP('Compare Mulitple Sires'!$G$52,'Breed Table'!A$5:J$22,4) -> -16.5 | L11: =VLOOKUP('Compare Mulitple Sires'!$G$52,'Breed Table'!A$5:J$22,5) -> -44.4 | M11: =VLOOKUP('Compare Mulitple Sires'!$G$52,'Breed Table'!A$5:J$22,6) -> -12.5 | N11: =VLOOKUP('Compare Mulitple Sires'!$G$52,'Breed Table'!A$5:J$22,7) -> -0.3 | O11: =VLOOKUP('Compare Mulitple Sires'!$G$52,'Breed Table'!A$5:J$22,8) -> 0.02 | P11: =VLOOKUP('Compare Mulitple Sires'!$G$52,'Breed Table'!A$5:J$22,9) -> -0.073 | Q11: =VLOOKUP('Compare Mulitple Sires'!$G$52,'Breed Table'!A$5:J$22,10) -> -41.1
A12: =VLOOKUP('Compare Mulitple Sires'!C13,'Breed Table'!A$5:J$22,3) ->  | B12: =VLOOKUP('Compare Mulitple Sires'!C13,'Breed Table'!A$5:J$22,4) ->  | C12: =VLOOKUP('Compare Mulitple Sires'!C13,'Breed Table'!A$5:J$22,5) ->  | D12: =VLOOKUP('Compare Mulitple Sires'!C13,'Breed Table'!A$5:J$22,6) ->  | E12: =VLOOKUP('Compare Mulitple Sires'!C13,'Breed Table'!A$5:J$22,7) ->  | F12: =VLOOKUP('Compare Mulitple Sires'!C13,'Breed Table'!A$5:J$22,8) ->  | G12: =VLOOKUP('Compare Mulitple Sires'!C13,'Breed Table'!A$5:J$22,9) ->  | H12: =VLOOKUP('Compare Mulitple Sires'!C13,'Breed Table'!A$5:J$22,10) ->  | J12: =VLOOKUP('Compare Mulitple Sires'!$G$52,'Breed Table'!A$5:J$22,3) -> 1.4 | K12: =VLOOKUP('Compare Mulitple Sires'!$G$52,'Breed Table'!A$5:J$22,4) -> -16.5 | L12: =VLOOKUP('Compare Mulitple Sires'!$G$52,'Breed Table'!A$5:J$22,5) -> -44.4 | M12: =VLOOKUP('Compare Mulitple Sires'!$G$52,'Breed Table'!A$5:J$22,6) -> -12.5 | N12: =VLOOKUP('Compare Mulitple Sires'!$G$52,'Breed Table'!A$5:J$22,7) -> -0.3 | O12: =VLOOKUP('Compare Mulitple Sires'!$G$52,'Breed Table'!A$5:J$22,8) -> 0.02 | P12: =VLOOKUP('Compare Mulitple Sires'!$G$52,'Breed Table'!A$5:J$22,9) -> -0.073 | Q12: =VLOOKUP('Compare Mulitple Sires'!$G$52,'Breed Table'!A$5:J$22,10) -> -41.1
A13: =VLOOKUP('Compare Mulitple Sires'!C14,'Breed Table'!A$5:J$22,3) ->  | B13: =VLOOKUP('Compare Mulitple Sires'!C14,'Breed Table'!A$5:J$22,4) ->  | C13: =VLOOKUP('Compare Mulitple Sires'!C14,'Breed Table'!A$5:J$22,5) ->  | D13: =VLOOKUP('Compare Mulitple Sires'!C14,'Breed Table'!A$5:J$22,6) ->  | E13: =VLOOKUP('Compare Mulitple Sires'!C14,'Breed Table'!A$5:J$22,7) ->  | F13: =VLOOKUP('Compare Mulitple Sires'!C14,'Breed Table'!A$5:J$22,8) ->  | G13: =VLOOKUP('Compare Mulitple Sires'!C14,'Breed Table'!A$5:J$22,9) ->  | H13: =VLOOKUP('Compare Mulitple Sires'!C14,'Breed Table'!A$5:J$22,10) ->  | J13: =VLOOKUP('Compare Mulitple Sires'!$G$52,'Breed Table'!A$5:J$22,3) -> 1.4 | K13: =VLOOKUP('Compare Mulitple Sires'!$G$52,'Breed Table'!A$5:J$22,4) -> -16.5 | L13: =VLOOKUP('Compare Mulitple Sires'!$G$52,'Breed Table'!A$5:J$22,5) -> -44.4 | M13: =VLOOKUP('Compare Mulitple Sires'!$G$52,'Breed Table'!A$5:J$22,6) -> -12.5 | N13: =VLOOKUP('Compare Mulitple Sires'!$G$52,'Breed Table'!A$5:J$22,7) -> -0.3 | O13: =VLOOKUP('Compare Mulitple Sires'!$G$52,'Breed Table'!A$5:J$22,8) -> 0.02 | P13: =VLOOKUP('Compare Mulitple Sires'!$G$52,'Breed Table'!A$5:J$22,9) -> -0.073 | Q13: =VLOOKUP('Compare Mulitple Sires'!$G$52,'Breed Table'!A$5:J$22,10) -> -41.1
A14: =VLOOKUP('Compare Mulitple Sires'!C15,'Breed Table'!A$5:J$22,3) ->  | B14: =VLOOKUP('Compare Mulitple Sires'!C15,'Breed Table'!A$5:J$22,4) ->  | C14: =VLOOKUP('Compare Mulitple Sires'!C15,'Breed Table'!A$5:J$22,5) ->  | D14: =VLOOKUP('Compare Mulitple Sires'!C15,'Breed Table'!A$5:J$22,6) ->  | E14: =VLOOKUP('Compare Mulitple Sires'!C15,'Breed Table'!A$5:J$22,7) ->  | F14: =VLOOKUP('Compare Mulitple Sires'!C15,'Breed Table'!A$5:J$22,8) ->  | G14: =VLOOKUP('Compare Mulitple Sires'!C15,'Breed Table'!A$5:J$22,9) ->  | H14: =VLOOKUP('Compare Mulitple Sires'!C15,'Breed Table'!A$5:J$22,10) ->  | J14: =VLOOKUP('Compare Mulitple Sires'!$G$52,'Breed Table'!A$5:J$22,3) -> 1.4 | K14: =VLOOKUP('Compare Mulitple Sires'!$G$52,'Breed Table'!A$5:J$22,4) -> -16.5 | L14: =VLOOKUP('Compare Mulitple Sires'!$G$52,'Breed Table'!A$5:J$22,5) -> -44.4 | M14: =VLOOKUP('Compare Mulitple Sires'!$G$52,'Breed Table'!A$5:J$22,6) -> -12.5 | N14: =VLOOKUP('Compare Mulitple Sires'!$G$52,'Breed Table'!A$5:J$22,7) -> -0.3 | O14: =VLOOKUP('Compare Mulitple Sires'!$G$52,'Breed Table'!A$5:J$22,8) -> 0.02 | P14: =VLOOKUP('Compare Mulitple Sires'!$G$52,'Breed Table'!A$5:J$22,9) -> -0.073 | Q14: =VLOOKUP('Compare Mulitple Sires'!$G$52,'Breed Table'!A$5:J$22,10) -> -41.1
A15: =VLOOKUP('Compare Mulitple Sires'!C16,'Breed Table'!A$5:J$22,3) ->  | B15: =VLOOKUP('Compare Mulitple Sires'!C16,'Breed Table'!A$5:J$22,4) ->  | C15: =VLOOKUP('Compare Mulitple Sires'!C16,'Breed Table'!A$5:J$22,5) ->  | D15: =VLOOKUP('Compare Mulitple Sires'!C16,'Breed Table'!A$5:J$22,6) ->  | E15: =VLOOKUP('Compare Mulitple Sires'!C16,'Breed Table'!A$5:J$22,7) ->  | F15: =VLOOKUP('Compare Mulitple Sires'!C16,'Breed Table'!A$5:J$22,8) ->  | G15: =VLOOKUP('Compare Mulitple Sires'!C16,'Breed Table'!A$5:J$22,9) ->  | H15: =VLOOKUP('Compare Mulitple Sires'!C16,'Breed Table'!A$5:J$22,10) ->  | J15: =VLOOKUP('Compare Mulitple Sires'!$G$52,'Breed Table'!A$5:J$22,3) -> 1.4 | K15: =VLOOKUP('Compare Mulitple Sires'!$G$52,'Breed Table'!A$5:J$22,4) -> -16.5 | L15: =VLOOKUP('Compare Mulitple Sires'!$G$52,'Breed Table'!A$5:J$22,5) -> -44.4 | M15: =VLOOKUP('Compare Mulitple Sires'!$G$52,'Breed Table'!A$5:J$22,6) -> -12.5 | N15: =VLOOKUP('Compare Mulitple Sires'!$G$52,'Breed Table'!A$5:J$22,7) -> -0.3 | O15: =VLOOKUP('Compare Mulitple Sires'!$G$52,'Breed Table'!A$5:J$22,8) -> 0.02 | P15: =VLOOKUP('Compare Mulitple Sires'!$G$52,'Breed Table'!A$5:J$22,9) -> -0.073 | Q15: =VLOOKUP('Compare Mulitple Sires'!$G$52,'Breed Table'!A$5:J$22,10) -> -41.1
A16: =VLOOKUP('Compare Mulitple Sires'!C17,'Breed Table'!A$5:J$22,3) ->  | B16: =VLOOKUP('Compare Mulitple Sires'!C17,'Breed Table'!A$5:J$22,4) ->  | C16: =VLOOKUP('Compare Mulitple Sires'!C17,'Breed Table'!A$5:J$22,5) ->  | D16: =VLOOKUP('Compare Mulitple Sires'!C17,'Breed Table'!A$5:J$22,6) ->  | E16: =VLOOKUP('Compare Mulitple Sires'!C17,'Breed Table'!A$5:J$22,7) ->  | F16: =VLOOKUP('Compare Mulitple Sires'!C17,'Breed Table'!A$5:J$22,8) ->  | G16: =VLOOKUP('Compare Mulitple Sires'!C17,'Breed Table'!A$5:J$22,9) ->  | H16: =VLOOKUP('Compare Mulitple Sires'!C17,'Breed Table'!A$5:J$22,10) ->  | J16: =VLOOKUP('Compare Mulitple Sires'!$G$52,'Breed Table'!A$5:J$22,3) -> 1.4 | K16: =VLOOKUP('Compare Mulitple Sires'!$G$52,'Breed Table'!A$5:J$22,4) -> -16.5 | L16: =VLOOKUP('Compare Mulitple Sires'!$G$52,'Breed Table'!A$5:J$22,5) -> -44.4 | M16: =VLOOKUP('Compare Mulitple Sires'!$G$52,'Breed Table'!A$5:J$22,6) -> -12.5 | N16: =VLOOKUP('Compare Mulitple Sires'!$G$52,'Breed Table'!A$5:J$22,7) -> -0.3 | O16: =VLOOKUP('Compare Mulitple Sires'!$G$52,'Breed Table'!A$5:J$22,8) -> 0.02 | P16: =VLOOKUP('Compare Mulitple Sires'!$G$52,'Breed Table'!A$5:J$22,9) -> -0.073 | Q16: =VLOOKUP('Compare Mulitple Sires'!$G$52,'Breed Table'!A$5:J$22,10) -> -41.1
A17: =VLOOKUP('Compare Mulitple Sires'!C18,'Breed Table'!A$5:J$22,3) ->  | B17: =VLOOKUP('Compare Mulitple Sires'!C18,'Breed Table'!A$5:J$22,4) ->  | C17: =VLOOKUP('Compare Mulitple Sires'!C18,'Breed Table'!A$5:J$22,5) ->  | D17: =VLOOKUP('Compare Mulitple Sires'!C18,'Breed Table'!A$5:J$22,6) ->  | E17: =VLOOKUP('Compare Mulitple Sires'!C18,'Breed Table'!A$5:J$22,7) ->  | F17: =VLOOKUP('Compare Mulitple Sires'!C18,'Breed Table'!A$5:J$22,8) ->  | G17: =VLOOKUP('Compare Mulitple Sires'!C18,'Breed Table'!A$5:J$22,9) ->  | H17: =VLOOKUP('Compare Mulitple Sires'!C18,'Breed Table'!A$5:J$22,10) ->  | J17: =VLOOKUP('Compare Mulitple Sires'!$G$52,'Breed Table'!A$5:J$22,3) -> 1.4 | K17: =VLOOKUP('Compare Mulitple Sires'!$G$52,'Breed Table'!A$5:J$22,4) -> -16.5 | L17: =VLOOKUP('Compare Mulitple Sires'!$G$52,'Breed Table'!A$5:J$22,5) -> -44.4 | M17: =VLOOKUP('Compare Mulitple Sires'!$G$52,'Breed Table'!A$5:J$22,6) -> -12.5 | N17: =VLOOKUP('Compare Mulitple Sires'!$G$52,'Breed Table'!A$5:J$22,7) -> -0.3 | O17: =VLOOKUP('Compare Mulitple Sires'!$G$52,'Breed Table'!A$5:J$22,8) -> 0.02 | P17: =VLOOKUP('Compare Mulitple Sires'!$G$52,'Breed Table'!A$5:J$22,9) -> -0.073 | Q17: =VLOOKUP('Compare Mulitple Sires'!$G$52,'Breed Table'!A$5:J$22,10) -> -41.1
A18: =VLOOKUP('Compare Mulitple Sires'!C19,'Breed Table'!A$5:J$22,3) ->  | B18: =VLOOKUP('Compare Mulitple Sires'!C19,'Breed Table'!A$5:J$22,4) ->  | C18: =VLOOKUP('Compare Mulitple Sires'!C19,'Breed Table'!A$5:J$22,5) ->  | D18: =VLOOKUP('Compare Mulitple Sires'!C19,'Breed Table'!A$5:J$22,6) ->  | E18: =VLOOKUP('Compare Mulitple Sires'!C19,'Breed Table'!A$5:J$22,7) ->  | F18: =VLOOKUP('Compare Mulitple Sires'!C19,'Breed Table'!A$5:J$22,8) ->  | G18: =VLOOKUP('Compare Mulitple Sires'!C19,'Breed Table'!A$5:J$22,9) ->  | H18: =VLOOKUP('Compare Mulitple Sires'!C19,'Breed Table'!A$5:J$22,10) ->  | J18: =VLOOKUP('Compare Mulitple Sires'!$G$52,'Breed Table'!A$5:J$22,3) -> 1.4 | K18: =VLOOKUP('Compare Mulitple Sires'!$G$52,'Breed Table'!A$5:J$22,4) -> -16.5 | L18: =VLOOKUP('Compare Mulitple Sires'!$G$52,'Breed Table'!A$5:J$22,5) -> -44.4 | M18: =VLOOKUP('Compare Mulitple Sires'!$G$52,'Breed Table'!A$5:J$22,6) -> -12.5 | N18: =VLOOKUP('Compare Mulitple Sires'!$G$52,'Breed Table'!A$5:J$22,7) -> -0.3 | O18: =VLOOKUP('Compare Mulitple Sires'!$G$52,'Breed Table'!A$5:J$22,8) -> 0.02 | P18: =VLOOKUP('Compare Mulitple Sires'!$G$52,'Breed Table'!A$5:J$22,9) -> -0.073 | Q18: =VLOOKUP('Compare Mulitple Sires'!$G$52,'Breed Table'!A$5:J$22,10) -> -41.1
A19: =VLOOKUP('Compare Mulitple Sires'!C20,'Breed Table'!A$5:J$22,3) ->  | B19: =VLOOKUP('Compare Mulitple Sires'!C20,'Breed Table'!A$5:J$22,4) ->  | C19: =VLOOKUP('Compare Mulitple Sires'!C20,'Breed Table'!A$5:J$22,5) ->  | D19: =VLOOKUP('Compare Mulitple Sires'!C20,'Breed Table'!A$5:J$22,6) ->  | E19: =VLOOKUP('Compare Mulitple Sires'!C20,'Breed Table'!A$5:J$22,7) ->  | F19: =VLOOKUP('Compare Mulitple Sires'!C20,'Breed Table'!A$5:J$22,8) ->  | G19: =VLOOKUP('Compare Mulitple Sires'!C20,'Breed Table'!A$5:J$22,9) ->  | H19: =VLOOKUP('Compare Mulitple Sires'!C20,'Breed Table'!A$5:J$22,10) ->  | J19: =VLOOKUP('Compare Mulitple Sires'!$G$52,'Breed Table'!A$5:J$22,3) -> 1.4 | K19: =VLOOKUP('Compare Mulitple Sires'!$G$52,'Breed Table'!A$5:J$22,4) -> -16.5 | L19: =VLOOKUP('Compare Mulitple Sires'!$G$52,'Breed Table'!A$5:J$22,5) -> -44.4 | M19: =VLOOKUP('Compare Mulitple Sires'!$G$52,'Breed Table'!A$5:J$22,6) -> -12.5 | N19: =VLOOKUP('Compare Mulitple Sires'!$G$52,'Breed Table'!A$5:J$22,7) -> -0.3 | O19: =VLOOKUP('Compare Mulitple Sires'!$G$52,'Breed Table'!A$5:J$22,8) -> 0.02 | P19: =VLOOKUP('Compare Mulitple Sires'!$G$52,'Breed Table'!A$5:J$22,9) -> -0.073 | Q19: =VLOOKUP('Compare Mulitple Sires'!$G$52,'Breed Table'!A$5:J$22,10) -> -41.1
A20: =VLOOKUP('Compare Mulitple Sires'!C21,'Breed Table'!A$5:J$22,3) ->  | B20: =VLOOKUP('Compare Mulitple Sires'!C21,'Breed Table'!A$5:J$22,4) ->  | C20: =VLOOKUP('Compare Mulitple Sires'!C21,'Breed Table'!A$5:J$22,5) ->  | D20: =VLOOKUP('Compare Mulitple Sires'!C21,'Breed Table'!A$5:J$22,6) ->  | E20: =VLOOKUP('Compare Mulitple Sires'!C21,'Breed Table'!A$5:J$22,7) ->  | F20: =VLOOKUP('Compare Mulitple Sires'!C21,'Breed Table'!A$5:J$22,8) ->  | G20: =VLOOKUP('Compare Mulitple Sires'!C21,'Breed Table'!A$5:J$22,9) ->  | H20: =VLOOKUP('Compare Mulitple Sires'!C21,'Breed Table'!A$5:J$22,10) ->  | J20: =VLOOKUP('Compare Mulitple Sires'!$G$52,'Breed Table'!A$5:J$22,3) -> 1.4 | K20: =VLOOKUP('Compare Mulitple Sires'!$G$52,'Breed Table'!A$5:J$22,4) -> -16.5 | L20: =VLOOKUP('Compare Mulitple Sires'!$G$52,'Breed Table'!A$5:J$22,5) -> -44.4 | M20: =VLOOKUP('Compare Mulitple Sires'!$G$52,'Breed Table'!A$5:J$22,6) -> -12.5 | N20: =VLOOKUP('Compare Mulitple Sires'!$G$52,'Breed Table'!A$5:J$22,7) -> -0.3 | O20: =VLOOKUP('Compare Mulitple Sires'!$G$52,'Breed Table'!A$5:J$22,8) -> 0.02 | P20: =VLOOKUP('Compare Mulitple Sires'!$G$52,'Breed Table'!A$5:J$22,9) -> -0.073 | Q20: =VLOOKUP('Compare Mulitple Sires'!$G$52,'Breed Table'!A$5:J$22,10) -> -41.1
A21: =VLOOKUP('Compare Mulitple Sires'!C22,'Breed Table'!A$5:J$22,3) ->  | B21: =VLOOKUP('Compare Mulitple Sires'!C22,'Breed Table'!A$5:J$22,4) ->  | C21: =VLOOKUP('Compare Mulitple Sires'!C22,'Breed Table'!A$5:J$22,5) ->  | D21: =VLOOKUP('Compare Mulitple Sires'!C22,'Breed Table'!A$5:J$22,6) ->  | E21: =VLOOKUP('Compare Mulitple Sires'!C22,'Breed Table'!A$5:J$22,7) ->  | F21: =VLOOKUP('Compare Mulitple Sires'!C22,'Breed Table'!A$5:J$22,8) ->  | G21: =VLOOKUP('Compare Mulitple Sires'!C22,'Breed Table'!A$5:J$22,9) ->  | H21: =VLOOKUP('Compare Mulitple Sires'!C22,'Breed Table'!A$5:J$22,10) ->  | J21: =VLOOKUP('Compare Mulitple Sires'!$G$52,'Breed Table'!A$5:J$22,3) -> 1.4 | K21: =VLOOKUP('Compare Mulitple Sires'!$G$52,'Breed Table'!A$5:J$22,4) -> -16.5 | L21: =VLOOKUP('Compare Mulitple Sires'!$G$52,'Breed Table'!A$5:J$22,5) -> -44.4 | M21: =VLOOKUP('Compare Mulitple Sires'!$G$52,'Breed Table'!A$5:J$22,6) -> -12.5 | N21: =VLOOKUP('Compare Mulitple Sires'!$G$52,'Breed Table'!A$5:J$22,7) -> -0.3 | O21: =VLOOKUP('Compare Mulitple Sires'!$G$52,'Breed Table'!A$5:J$22,8) -> 0.02 | P21: =VLOOKUP('Compare Mulitple Sires'!$G$52,'Breed Table'!A$5:J$22,9) -> -0.073 | Q21: =VLOOKUP('Compare Mulitple Sires'!$G$52,'Breed Table'!A$5:J$22,10) -> -41.1
A22: =VLOOKUP('Compare Mulitple Sires'!C23,'Breed Table'!A$5:J$22,3) ->  | B22: =VLOOKUP('Compare Mulitple Sires'!C23,'Breed Table'!A$5:J$22,4) ->  | C22: =VLOOKUP('Compare Mulitple Sires'!C23,'Breed Table'!A$5:J$22,5) ->  | D22: =VLOOKUP('Compare Mulitple Sires'!C23,'Breed Table'!A$5:J$22,6) ->  | E22: =VLOOKUP('Compare Mulitple Sires'!C23,'Breed Table'!A$5:J$22,7) ->  | F22: =VLOOKUP('Compare Mulitple Sires'!C23,'Breed Table'!A$5:J$22,8) ->  | G22: =VLOOKUP('Compare Mulitple Sires'!C23,'Breed Table'!A$5:J$22,9) ->  | H22: =VLOOKUP('Compare Mulitple Sires'!C23,'Breed Table'!A$5:J$22,10) ->  | J22: =VLOOKUP('Compare Mulitple Sires'!$G$52,'Breed Table'!A$5:J$22,3) -> 1.4 | K22: =VLOOKUP('Compare Mulitple Sires'!$G$52,'Breed Table'!A$5:J$22,4) -> -16.5 | L22: =VLOOKUP('Compare Mulitple Sires'!$G$52,'Breed Table'!A$5:J$22,5) -> -44.4 | M22: =VLOOKUP('Compare Mulitple Sires'!$G$52,'Breed Table'!A$5:J$22,6) -> -12.5 | N22: =VLOOKUP('Compare Mulitple Sires'!$G$52,'Breed Table'!A$5:J$22,7) -> -0.3 | O22: =VLOOKUP('Compare Mulitple Sires'!$G$52,'Breed Table'!A$5:J$22,8) -> 0.02 | P22: =VLOOKUP('Compare Mulitple Sires'!$G$52,'Breed Table'!A$5:J$22,9) -> -0.073 | Q22: =VLOOKUP('Compare Mulitple Sires'!$G$52,'Breed Table'!A$5:J$22,10) -> -41.1
A23: =VLOOKUP('Compare Mulitple Sires'!C24,'Breed Table'!A$5:J$22,3) ->  | B23: =VLOOKUP('Compare Mulitple Sires'!C24,'Breed Table'!A$5:J$22,4) ->  | C23: =VLOOKUP('Compare Mulitple Sires'!C24,'Breed Table'!A$5:J$22,5) ->  | D23: =VLOOKUP('Compare Mulitple Sires'!C24,'Breed Table'!A$5:J$22,6) ->  | E23: =VLOOKUP('Compare Mulitple Sires'!C24,'Breed Table'!A$5:J$22,7) ->  | F23: =VLOOKUP('Compare Mulitple Sires'!C24,'Breed Table'!A$5:J$22,8) ->  | G23: =VLOOKUP('Compare Mulitple Sires'!C24,'Breed Table'!A$5:J$22,9) ->  | H23: =VLOOKUP('Compare Mulitple Sires'!C24,'Breed Table'!A$5:J$22,10) ->  | J23: =VLOOKUP('Compare Mulitple Sires'!$G$52,'Breed Table'!A$5:J$22,3) -> 1.4 | K23: =VLOOKUP('Compare Mulitple Sires'!$G$52,'Breed Table'!A$5:J$22,4) -> -16.5 | L23: =VLOOKUP('Compare Mulitple Sires'!$G$52,'Breed Table'!A$5:J$22,5) -> -44.4 | M23: =VLOOKUP('Compare Mulitple Sires'!$G$52,'Breed Table'!A$5:J$22,6) -> -12.5 | N23: =VLOOKUP('Compare Mulitple Sires'!$G$52,'Breed Table'!A$5:J$22,7) -> -0.3 | O23: =VLOOKUP('Compare Mulitple Sires'!$G$52,'Breed Table'!A$5:J$22,8) -> 0.02 | P23: =VLOOKUP('Compare Mulitple Sires'!$G$52,'Breed Table'!A$5:J$22,9) -> -0.073 | Q23: =VLOOKUP('Compare Mulitple Sires'!$G$52,'Breed Table'!A$5:J$22,10) -> -41.1
